{"text_format":"1","workbook":"xlsx","n_sheets":3,"sheets":["Отчет","Настройка","Выгрузка в ГНИ 4"],"not_rendered":{"charts":0,"images":0,"macros":1,"external_links":0,"defined_names":351,"comments":0,"pivot_tables":0},"unopened":[],"bounds":{"document_bytes":16777216,"sheet_cells":100000,"rows_first":2000,"rows_last":500,"rows_between":2000,"halvings":0,"cell_chars":16384,"cell_head_chars":4096},"cells_cut":0,"cells_raw":0,"read":"whole","date_system":"1900"}

{"sheet":"Отчет","index":0,"n_rows":164,"n_cols":10,"rows_kept":164,"cut":false,"hidden":false,"merged":[[4,1,4,7]]}
["ОТЧЕТ"]
["ОБ ИСПОЛНЕНИИ УЧРЕЖДЕНИЕМ ПЛАНА ЕГО ФИНАНСОВО-ХОЗЯЙСТВЕННОЙ ДЕЯТЕЛЬНОСТИ",null,null,null,null,null,null,null,null,"КОДЫ"]
[null,null,null,null,null,null,null,null,"Форма по ОКУД ","0503737"]
[null,null,null,"на 01 января 2016 г.",null,null,null,null,"Дата ","01.01.2016"]
["Учреждение","УФК по Саратовской области (Фин. управление администрации Ртищевского муницип. района СОШ №3 )",null,null,null,null,null,null,"по ОКПО ","36172359"]
["Обособленное подразделение"]
["Учредитель","",null,null,null,null,null,null,"по ОКТМО ","63440000000"]
["Наименование органа, осуществля-",null,null,null,null,null,null,null,"по ОКПО ",""]
["ющего полномочия учредителя",null,null,null,null,null,null,null,"Глава по БК ",""]
["Вид финансового обеспечения (деятельности)","Собственные доходы учреждения",null,null,null,null,null,null,null,"2"]
["Периодичность: годовая"]
["Единица измерения:  руб ",null,null,null,null,null,null,null,"по ОКЕИ ","383"]
[null,null,null,"1. Доходы учреждения"]
[null,"Код","Код","Утверждено","Исполнено плановых назначений",null,null,null,null,"Не исполнено"]
["Наименование показателя","стро-","анали-","плановых","через лицевые","через банковские","через кассу","некассовыми","итого","плановых"]
[null,"ки","тики","назначений","счета","счета","учреждения","операциями",null,"назначений"]
["1    ",2,"3","4","5","6","7","8","9","10"]
["Доходы - всего","010",null,{"$f":"D19+D22+D23+D24+D28+D37","v":1521892},{"$f":"E19+E22+E23+E24+E28+E37","v":1521892},{"$f":"F19+F22+F23+F24+F28+F37","v":0},{"$f":"G19+G22+G23+G24+G28+G37","v":0},{"$f":"H19+H22+H23+H24+H28+H37","v":0},{"$f":"E18+F18+G18+H18","v":1521892},{"$f":"MAX(D18-I18,0)","v":0}]
["Доходы от собственности","030","120",{"$f":"D21","v":0},{"$f":"E21","v":0},{"$f":"F21","v":0},{"$f":"G21","v":0},{"$f":"H21","v":0},{"$f":"E19+F19+G19+H19","v":0},{"$f":"MAX(D19-I19,0)","v":0}]
["из них:"]
["от аренды активов","031","120",0,0,0,0,0,{"$f":"E21+F21+G21+H21","v":0},{"$f":"MAX(D21-I21,0)","v":0}]
["Доходы от оказания платных услуг (работ)","040","130",1521892,1521892,0,0,0,{"$f":"E22+F22+G22+H22","v":1521892},{"$f":"MAX(D22-I22,0)","v":0}]
["Доходы от штрафов, пеней, иных сумм принудительного изъятия","050","140",0,0,0,0,0,{"$f":"E23+F23+G23+H23","v":0},{"$f":"MAX(D23-I23,0)","v":0}]
["Безвозмездное поступление от бюджетов","060","150",{"$f":"D26+D27","v":0},{"$f":"E26+E27","v":0},{"$f":"F26+F27","v":0},{"$f":"G26+G27","v":0},{"$f":"H26+H27","v":0},{"$f":"E24+F24+G24+H24","v":0},{"$f":"MAX(D24-I24,0)","v":0}]
["в том числе:"]
["поступления от наднациональных организаций и правительств иностранных государств","062","152",0,0,0,0,0,{"$f":"E26+F26+G26+H26","v":0},{"$f":"MAX(D26-I26,0)","v":0}]
["поступления от международных финансовых организаций","063","153",0,0,0,0,0,{"$f":"E27+F27+G27+H27","v":0},{"$f":"MAX(D27-I27,0)","v":0}]
["Доходы от операций с активами","090","x",{"$f":"D30+D31+D32+D33+D34+D35+D36","v":0},{"$f":"E30+E31+E32+E33+E34+E35+E36","v":0},{"$f":"F30+F31+F32+F33+F34+F35+F36","v":0},{"$f":"G30+G31+G32+G33+G34+G35+G36","v":0},{"$f":"H30+H31+H32+H33+H34+H35+H36","v":0},{"$f":"E28+F28+G28+H28","v":0},{"$f":"MAX(D28-I28,0)","v":0}]
["в том числе:"]
["от выбытий основных средств","092","410",0,0,0,0,0,{"$f":"E30+F30+G30+H30","v":0},{"$f":"MAX(D30-I30,0)","v":0}]
["от выбытий нематериальных активов","093","420",0,0,0,0,0,0,0]
["от выбытий непроизведенных активов","094","430",0,0,0,0,0,0,0]
["от выбытий материальных запасов","095","440",0,0,0,0,0,0,0]
["от выбытий ценных бумаг, кроме акций","096","620",0,0,0,0,0,0,0]
["от выбытий акций","097","630",0,0,0,0,0,0,0]
["от выбытий иных финансовых активов","098","650",0,0,0,0,0,0,0]
["Прочие доходы","100","180",{"$f":"D39+D40+D41+D42","v":0},{"$f":"E39+E40+E41+E42","v":0},{"$f":"F39+F40+F41+F42","v":0},{"$f":"G39+G40+G41+G42","v":0},{"$f":"H39+H40+H41+H42","v":0},0,0]
["из них:"]
["субсидии","101","180",0,0,0,0,0,{"$f":"E39+F39+G39+H39","v":0},{"$f":"MAX(D39-I39,0)","v":0}]
["субсидии на осуществление капитальных вложений","102","180",0,0,0,0,0,{"$f":"E40+F40+G40+H40","v":0},{"$f":"MAX(D40-I40,0)","v":0}]
["иные трансферты","103","180",0,0,0,0,0,{"$f":"E41+F41+G41+H41","v":0},{"$f":"MAX(D41-I41,0)","v":0}]
["иные прочие доходы","104","180",0,0,0,0,0,{"$f":"E42+F42+G42+H42","v":0},{"$f":"MAX(D42-I42,0)","v":0}]
[null,null,null,"2. Расходы учреждения",null,null,null,null,null,"Форма 0503737 с.2"]
[null,"Код","Код","Утверждено","Исполнено плановых назначений",null,null,null,null,"Не исполнено"]
["Наименование показателя","стро-","анали-","плановых","через лицевые","через банковские","через кассу","некассовыми","итого","плановых"]
[null,"ки","тики","назначений","счета","счета","учреждения","операциями",null,"назначений"]
["1    ",2,"3","4","5","6","7","8","9","10"]
["Расходы - всего","200","x",{"$f":"D50+D55+D63+D67+D76+D80+D84+D85+D91","v":1591054.11},{"$f":"E50+E55+E63+E67+E76+E80+E84+E85+E91","v":1441509.1},{"$f":"F50+F55+F63+F67+F76+F80+F84+F85+F91","v":0},{"$f":"G50+G55+G63+G67+G76+G80+G84+G85+G91","v":0},{"$f":"H50+H55+H63+H67+H76+H80+H84+H85+H91","v":0},{"$f":"E48+F48+G48+H48","v":1441509.1},{"$f":"MAX(D48-I48,0)","v":149545.01}]
["в том числе:"]
["Оплата труда и начисления на выплаты по оплате труда","160","210",{"$f":"D52+D53+D54","v":16537.32},{"$f":"E52+E53+E54","v":16537.32},{"$f":"F52+F53+F54","v":0},{"$f":"G52+G53+G54","v":0},{"$f":"H52+H53+H54","v":0},{"$f":"E50+F50+G50+H50","v":16537.32},{"$f":"MAX(D50-I50,0)","v":0}]
["в том числе:"]
["заработная плата","161","211",12990.83,12990.83,0,0,0,{"$f":"E52+F52+G52+H52","v":12990.83},{"$f":"MAX(D52-I52,0)","v":0}]
["прочие выплаты","162","212",0,0,0,0,0,{"$f":"E53+F53+G53+H53","v":0},{"$f":"MAX(D53-I53,0)","v":0}]
["начисления на выплаты по оплате труда","163","213",3546.49,3546.49,0,0,0,{"$f":"E54+F54+G54+H54","v":3546.49},{"$f":"MAX(D54-I54,0)","v":0}]
["Приобретение работ, услуг","170","220",{"$f":"D57+D58+D59+D60+D61+D62","v":38438.480000000003},{"$f":"E57+E58+E59+E60+E61+E62","v":38438.480000000003},{"$f":"F57+F58+F59+F60+F61+F62","v":0},{"$f":"G57+G58+G59+G60+G61+G62","v":0},{"$f":"H57+H58+H59+H60+H61+H62","v":0},{"$f":"E55+F55+G55+H55","v":38438.480000000003},{"$f":"MAX(D55-I55,0)","v":0}]
["в том числе:"]
["услуги связи","171","221",0,0,0,0,0,{"$f":"E57+F57+G57+H57","v":0},{"$f":"MAX(D57-I57,0)","v":0}]
["транспортные услуги","172","222",0,0,0,0,0,0,0]
["коммунальные услуги","173","223",0,0,0,0,0,0,0]
["арендная плата за пользование имуществом","174","224",0,0,0,0,0,0,0]
["работы, услуги по содержанию имущества","175","225",0,0,0,0,0,0,0]
["прочие работы, услуги","176","226",38438.480000000003,38438.480000000003,0,0,0,38438.480000000003,0]
["Обслуживание долговых обязательств","190","230",{"$f":"D65+D66","v":0},{"$f":"E65+E66","v":0},{"$f":"F65+F66","v":0},{"$f":"G65+G66","v":0},{"$f":"H65+H66","v":0},0,0]
["в том числе:"]
["Обслуживание долговых обязательств перед резидентами","191","231",0,0,0,0,0,{"$f":"E65+F65+G65+H65","v":0},{"$f":"MAX(D65-I65,0)","v":0}]
["Обслуживание долговых обязательств перед нерезидентами","192","232",0,0,0,0,0,{"$f":"E66+F66+G66+H66","v":0},{"$f":"MAX(D66-I66,0)","v":0}]
["Безвозмездные перечисления организациям","210","240",{"$f":"D69+D70","v":0},{"$f":"E69+E70","v":0},{"$f":"F69+F70","v":0},{"$f":"G69+G70","v":0},{"$f":"H69+H70","v":0},{"$f":"E67+F67+G67+H67","v":0},{"$f":"MAX(D67-I67,0)","v":0}]
["в том числе:"]
["Безвозмездные перечисления государственным и муниципальным организациям","211","241",0,0,0,0,0,{"$f":"E69+F69+G69+H69","v":0},{"$f":"MAX(D69-I69,0)","v":0}]
["Безвозмездные перечисления организациям, за исключением государственных и муниципальных организаций","212","242",0,0,0,0,0,{"$f":"E70+F70+G70+H70","v":0},{"$f":"MAX(D70-I70,0)","v":0}]
[null,null,null,null,null,null,null,null,null,"Форма 0503737 с.3"]
[null,"Код","Код","Утверждено","Исполнено плановых назначений",null,null,null,null,"Не исполнено"]
["Наименование показателя","стро-","анали-","плановых","через лицевые","через банковские","через кассу","некассовыми","итого","плановых"]
[null,"ки","тики","назначений","счета","счета","учреждения","операциями",null,"назначений"]
["1    ",2,"3","4","5","6","7","8","9","10"]
["Безвозмездные перечисления бюджетам","230","250",{"$f":"D78+D79","v":0},{"$f":"E78+E79","v":0},{"$f":"F78+F79","v":0},{"$f":"G78+G79","v":0},{"$f":"H78+H79","v":0},{"$f":"E76+F76+G76+H76","v":0},{"$f":"MAX(D76-I76,0)","v":0}]
["в том числе:"]
["перечисления наднациональным организациям и правительствам иностранных государств","232","252",0,0,0,0,0,{"$f":"E78+F78+G78+H78","v":0},{"$f":"MAX(D78-I78,0)","v":0}]
["перечисления международным организациям","233","253",0,0,0,0,0,{"$f":"E79+F79+G79+H79","v":0},{"$f":"MAX(D79-I79,0)","v":0}]
["Социальное обеспечение","240","260",{"$f":"D82+D83","v":0},{"$f":"E82+E83","v":0},{"$f":"F82+F83","v":0},{"$f":"G82+G83","v":0},{"$f":"H82+H83","v":0},{"$f":"E80+F80+G80+H80","v":0},{"$f":"MAX(D80-I80,0)","v":0}]
["в том числе:"]
["пособия по социальной помощи населению","242","262",0,0,0,0,0,{"$f":"E82+F82+G82+H82","v":0},{"$f":"MAX(D82-I82,0)","v":0}]
["пенсии, пособия, выплачиваемые организациями сектора государственного управления","243","263",0,0,0,0,0,{"$f":"E83+F83+G83+H83","v":0},{"$f":"MAX(D83-I83,0)","v":0}]
["Прочие расходы","250","290",8173,8173,0,0,0,{"$f":"E84+F84+G84+H84","v":8173},{"$f":"MAX(D84-I84,0)","v":0}]
["Расходы по приобретению нефинансовых активов","260","300",{"$f":"D87+D88+D89+D90","v":1527905.31},{"$f":"E87+E88+E89+E90","v":1378360.3},{"$f":"F87+F88+F89+F90","v":0},{"$f":"G87+G88+G89+G90","v":0},{"$f":"H87+H88+H89+H90","v":0},{"$f":"E85+F85+G85+H85","v":1378360.3},{"$f":"MAX(D85-I85,0)","v":149545.01}]
["в том числе:"]
["основных средств","261","310",4650,4650,0,0,0,{"$f":"E87+F87+G87+H87","v":4650},{"$f":"MAX(D87-I87,0)","v":0}]
["нематериальных активов","262","320",0,0,0,0,0,{"$f":"E88+F88+G88+H88","v":0},{"$f":"MAX(D88-I88,0)","v":0}]
["непроизведенных активов","263","330",0,0,0,0,0,{"$f":"E89+F89+G89+H89","v":0},{"$f":"MAX(D89-I89,0)","v":0}]
["материальных запасов","264","340",1523255.31,1373710.3,0,0,0,{"$f":"E90+F90+G90+H90","v":1373710.3},{"$f":"MAX(D90-I90,0)","v":149545.01}]
["Расходы по приобретению финансовых активов","270","500",{"$f":"D93+D94+D95","v":0},{"$f":"E93+E94+E95","v":0},{"$f":"F93+F94+F95","v":0},{"$f":"G93+G94+G95","v":0},{"$f":"H93+H94+H95","v":0},{"$f":"E91+F91+G91+H91","v":0},{"$f":"MAX(D91-I91,0)","v":0}]
["из них:"]
["ценных бумаг, кроме акций","271","520",0,0,0,0,0,{"$f":"E93+F93+G93+H93","v":0},{"$f":"MAX(D93-I93,0)","v":0}]
["акций и иных форм участия в капитале","272","530",0,0,0,0,0,{"$f":"E94+F94+G94+H94","v":0},{"$f":"MAX(D94-I94,0)","v":0}]
["иных финансовых активов","273","550",0,0,0,0,0,{"$f":"E95+F95+G95+H95","v":0},{"$f":"MAX(D95-I95,0)","v":0}]
["Возвраты расходов и выплат обеспечений прошлых лет (стр. 300 (гр. 5 - 9) = стр. 900 (гр. 4 - 8)","300","x",null,{"$f":"D144","v":0},{"$f":"E144","v":0},{"$f":"F144","v":0},{"$f":"G144","v":0},{"$f":"H144","v":0}]
[]
["Результат исполнения (дефицит / профицит)","450","x",{"$f":"D18-D48","v":-69162.11},{"$f":"E18-(E48+E96)","v":80382.899999999994},{"$f":"F18-(F48+F96)","v":0},{"$f":"G18-(G48+G96)","v":0},{"$f":"H18-(H48+H96)","v":0},{"$f":"I18-(I48+I96)","v":80382.899999999994},{"$f":"J18-J48","v":-149545.01}]
[null,null,"3. Источники финансирования дефицита средств учреждения",null,null,null,null,null,null,"Форма 0503737 с.4"]
[null,"Код","Код","Утверждено","Исполнено плановых назначений",null,null,null,null,"Не исполнено"]
["Наименование показателя","стро-","анали-","плановых","через лицевые","через банковские","через кассу","некассовыми","итого","плановых"]
[null,"ки","тики","назначений","счета","счета","учреждения","операциями",null,"назначений"]
["1    ",2,"3","4","5","6","7","8","9","10"]
["Источники финансирования дефицита средств - всего"]
["(стр.520+стр.620+стр.700+стр.730+стр.820+стр.830)","500",null,{"$f":"D107+D114+D119+D122+D131+D135","v":69162.11},-80382.899999999994,0,0,0,-80382.899999999994,{"$f":"MAX(D105-I105,0)","v":149545.01}]
["в том числе:"]
["Внутренние источники","520",null,{"$f":"D109+D110+D111+D112+D113","v":0},{"$f":"E109+E110+E111+E112+E113","v":0},{"$f":"F109+F110+F111+F112+F113","v":0},{"$f":"G109+G110+G111+G112+G113","v":0},{"$f":"H109+H110+H111+H112+H113","v":0},{"$f":"E107+F107+G107+H107","v":0},{"$f":"MAX(D107-I107,0)","v":0}]
["из них:"]
["курсовая разница","521","171",null,0,0,0,0,{"$f":"E109+F109+G109+H109","v":0},{"$f":"MAX(D109-I109,0)","v":0}]
["поступления от погашения займов (ссуд)","525","640",null,0,0,0,0,0,0]
["выплаты по предоставлению займов (ссуд)","526","540",null,0,0,0,0,0,0]
["поступления от заимствований от резидентов","527","710",null,0,0,0,0,0,0]
["поступления от заимствований от нерезидентов","528","810",null,0,0,0,0,0,0]
["Внешние источники","620",null,{"$f":"D116+D117+D118","v":0},{"$f":"E116+E117+E118","v":0},{"$f":"F116+F117+F118","v":0},{"$f":"G116+G117+G118","v":0},{"$f":"H116+H117+H118","v":0},0,0]
["из них:"]
["курсовая разница","621","171",null,null,null,null,null,{"$f":"E116+F116+G116+H116","v":0},{"$f":"MAX(D116-I116,0)","v":0}]
["поступления от заимствований от резидентов","625","720",null,0,0,0,0,{"$f":"E117+F117+G117+H117","v":0},{"$f":"MAX(D117-I117,0)","v":0}]
["поступления от заимствований от нерезидентов","626","820",null,0,0,0,0,{"$f":"E118+F118+G118+H118","v":0},{"$f":"MAX(D118-I118,0)","v":0}]
["Изменение остатков средств","700","x",69162.11,{"$f":"E120+E121","v":-80382.899999999994},{"$f":"F120+F121","v":0},{"$f":"G120+G121","v":0},{"$f":"H120+H121","v":0},{"$f":"I120+I121","v":-80382.899999999994},{"$f":"MAX(D119-I119,0)","v":149545.01}]
["увеличение остатков средств, всего","710","510",null,-1521892,0,0,null,{"$f":"E120+F120+G120+H120","v":-1521892},"x"]
["уменьшение остатков средств, всего","720","610",null,1441509.1,0,0,null,{"$f":"E121+F121+G121+H121","v":1441509.1},"x"]
["Изменение остатков по внутренним оборотам средств учреждения","730","x",{"$f":"D124+D125","v":0},0,0,0,0,0,{"$f":"MAX(D122-I122,0)","v":0}]
["в том числе:"]
["увеличение остатков средств учреждения","731","510",null,0,0,0,null,{"$f":"E124+F124+G124+H124","v":0},"x"]
["уменьшение остатков средств учреждения","732","610",null,0,0,0,0,{"$f":"E125+F125+G125+H125","v":0},"x"]
[null,null,null,null,null,null,null,null,null,"Форма 0503737 с.5"]
[null,"Код","Код","Утверждено","Исполнено плановых назначений",null,null,null,null,"Не исполнено"]
["Наименование показателя","стро-","анали-","плановых","через лицевые","через банковские","через кассу","некассовыми","итого","плановых"]
[null,"ки","тики","назначений","счета","счета","учреждения","операциями",null,"назначений"]
["1    ",2,"3","4","5","6","7","8","9","10"]
["Изменение остатков по внутренним расчетам","820","x",{"$f":"D133+D134","v":0},0,0,0,0,0,{"$f":"MAX(D131-I131,0)","v":0}]
["в том числе:"]
["увеличение остатков по внутренним расчетам (Кт 030404510)","821",null,null,0,0,null,null,{"$f":"E133+F133+G133+H133","v":0},{"$f":"MAX(D133-I133,0)","v":0}]
["уменьшение остатков по внутренним расчетам (Дт 030404610)","822",null,null,0,0,null,null,{"$f":"E134+F134+G134+H134","v":0},{"$f":"MAX(D134-I134,0)","v":0}]
["Изменение остатков расчетов по внутренним привлечениям средств","830","x",{"$f":"D137+D138","v":0},0,0,0,0,0,{"$f":"MAX(D135-I135,0)","v":0}]
["в том числе:"]
["увеличение расчетов по внутреннему привлечению остатков средств (Кт 030406000)","831",null,null,0,0,0,0,{"$f":"E137+F137+G137+H137","v":0},{"$f":"MAX(D137-I137,0)","v":0}]
["уменьшение расчетов по внутреннему привлечению остатков средств (Дт 030406000)","832",null,null,0,0,0,0,{"$f":"E138+F138+G138+H138","v":0},{"$f":"MAX(D138-I138,0)","v":0}]
[null,null,"4. Сведения о возвратах расходов и выплат обеспечений прошлых лет",null,null,null,null,null,null,"Форма 0503737 с.6"]
[null,"Код","Код","Исполнено плановых назначений"]
["Наименование показателя","стро-","анали-","через лицевые","через банковские","через кассу","некассовыми","итого"]
[null,"ки","тики","счета","счета","учреждения","операциями"]
["1    ",2,"3","4","5","6","7","8"]
["Возвращено расходов и обеспечений прошлых лет, всего","900","x",{"$f":"SUM(D145:D146)","v":0},{"$f":"SUM(E145:E146)","v":0},{"$f":"SUM(F145:F146)","v":0},{"$f":"SUM(G145:G146)","v":0},{"$f":"D144+E144+F144+G144","v":0}]
["из них по кодам аналитики:"]
[null,"901",null,null,null,null,null,{"$f":"D146+E146+F146+G146","v":0}]
[]
[]
[]
["Руководитель  _____________________________","Рудаева С.В.",null,null,null,"Руководитель финансово-    ____________________      ___________________________"]
["                                              (подпись)","(расшифровка подписи)",null,null,null,"экономической службы                    (подпись)                          (расшифровка подписи)"]
[]
["Главный бухгалтер  _________________________","Окружко Н.Г."]
["                                                   (подпись)","(расшифровка подписи)"]
[null,null,null,null,"Централизованная бухгалтерия"]
[null,null,null,null,null,null,"(наименование, ОГРН, ИНН, КПП, местонахождение)"]
[]
[null,null,null,null,"Руководитель","          ___________________     ___________________      __________________________"]
[null,null,null,null,"(уполномоченное лицо)            (должность)                         (подпись)                     (расшифровка подписи)"]
[]
["Исполнитель  ____________________     __________________",null,null,"",null,null,""]
["                                 (должность)                        (подпись)",null,null,"(расшифровка подписи)",null,null,"(телефон, e-mail)"]
[]
["\" _______ \"  ______________________ 20____ г."]

{"sheet":"Настройка","index":1,"n_rows":346,"n_cols":255,"rows_kept":346,"cut":false,"hidden":false,"merged":[]}
[null,"This.Print0s = .T.","Header",null,null,null,null,null,null,null,null,null,null,null,null,null,null,null,null,null,null,null,null,null,null,null,null,null,null,null,null,null,null,null,null,null,null,null,null,null,null,null,null,null,null,null,null,null,null,null,null,null,null,null,null,null,null,null,null,null,null,null,null,null,null,null,null,null,null,null,null,null,null,null,null,null,null,null,null,null,null,null,null,null,null,null,null,null,null,null,null,null,null,null,null,null,null,null,null,null,null,null,null,null,null,null,null,null,null,null,null,null,null,null,null,null,null,null,null,null,null,null,null,null,null,null,null,null,null,null,null,null,null,null,null,null,null,null,null,null,null,null,null,null,null,null,null,null,null,null,null,null,null,null,null,null,null,null,null,null,null,null,null,null,null,null,null,null,null,null,null,null,null,null,null,null,null,null,null,null,null,null,null,null,null,null,null,null,null,null,null,null,null,null,null,null,null,null,null,null,null,null,null,null,null,null,null,null,null,null,null,null,null,null,null,null,null,null,null,null,null,null,null,null,null,null,null,null,null,null,null,null,null,null,null,null,null,null,null,null,null,null,null,null,null,null,null,null,null,null,null,null,null,null,":б\u0018\u0001R^ћфИ\u0012ЈЫ\nЉК±"]
[null,"__p_Date = Iif(Empty(m.dReoDate), m.dDateEnd + 1, m.dReoDate)","Header"]
[null,"__p_OrgRn = Iif(m.cOrg # \"|\" And Len(m.cOrg) == 4, m.cOrg, oSystem.OwnerOrgRn)","Header"]
["ДатаОтчета","\"на \" +  DToCLong(__p_Date)","Header"]
["Дата","DToC2000(__p_Date)","Header"]
["ОРГАНИЗАЦИЯ","This.__getOrgName(__p_OrgRn)","Header"]
["ОКПО","AllTrim(This.Seek_TableFields(\"Org\", \"RN\", \"Org.OKPO\", __p_OrgRn))","Header"]
["Учредитель","This.__getOrgName(m.cRN_Found)","Header"]
["ОКАТО","AllTrim(This.Seek_TableFields(\"OrgBase\", \"RN\", \"OrgBase.OKATO\", __p_OrgRn))","Header"]
["ОКПО2","AllTrim(This.Seek_TableFields(\"Org\", \"RN\", \"Org.OKPO\", m.cRN_Found))","Header"]
["ГлаваБК","AllTrim(m.glBK)","Header"]
[null,"__p_VFO = Iif(Empty(m.cVFO), \"\", RTrim(arrVFO(AScan(arrVFO, m.cVFO) - 1)))","Header"]
["ВидФинОб","Iif(Empty(m.cVFO), \"\", RTrim(Left(__p_VFO, AT(\"(код\", __p_VFO) - 1)))","Header"]
["ВидФинОбКод","m.cVFO","Header"]
["Периодичность","\"Периодичность: \" + Iif(!Empty(m.dReoDate), \"реорганизация\", Iif(Month(m.dDateEnd + 1) = 1, \"годовая\", Iif(Inli(Month(m.dDateEnd + 1), 4, 7, 10), \"квартальная\", \"месячная\")))","Header"]
["Столбец4Строка031","m.nCol4Row031","Header"]
["Столбец5Строка031","m.nCol5Row031","Header"]
["Столбец6Строка031","m.nCol6Row031","Header"]
["Столбец7Строка031","m.nCol7Row031","Header"]
["Столбец8Строка031","m.nCol8Row031","Header"]
["Столбец4Строка040","m.nCol4Row040","Header"]
["Столбец5Строка040","m.nCol5Row040","Header"]
["Столбец6Строка040","m.nCol6Row040","Header"]
["Столбец7Строка040","m.nCol7Row040","Header"]
["Столбец8Строка040","m.nCol8Row040","Header"]
["Столбец4Строка050","m.nCol4Row050","Header"]
["Столбец5Строка050","m.nCol5Row050","Header"]
["Столбец6Строка050","m.nCol6Row050","Header"]
["Столбец7Строка050","m.nCol7Row050","Header"]
["Столбец8Строка050","m.nCol8Row050","Header"]
["Столбец4Строка062","m.nCol4Row062","Header"]
["Столбец5Строка062","m.nCol5Row062","Header"]
["Столбец6Строка062","m.nCol6Row062","Header"]
["Столбец7Строка062","m.nCol7Row062","Header"]
["Столбец8Строка062","m.nCol8Row062","Header"]
["Столбец4Строка063","m.nCol4Row063","Header"]
["Столбец5Строка063","m.nCol5Row063","Header"]
["Столбец6Строка063","m.nCol6Row063","Header"]
["Столбец7Строка063","m.nCol7Row063","Header"]
["Столбец8Строка063","m.nCol8Row063","Header"]
["Столбец4Строка092","m.nCol4Row092","Header"]
["Столбец5Строка092","m.nCol5Row092","Header"]
["Столбец6Строка092","m.nCol6Row092","Header"]
["Столбец7Строка092","m.nCol7Row092","Header"]
["Столбец8Строка092","m.nCol8Row092","Header"]
["Столбец4Строка093","m.nCol4Row093","Header"]
["Столбец5Строка093","m.nCol5Row093","Header"]
["Столбец6Строка093","m.nCol6Row093","Header"]
["Столбец7Строка093","m.nCol7Row093","Header"]
["Столбец8Строка093","m.nCol8Row093","Header"]
["Столбец4Строка094","m.nCol4Row094","Header"]
["Столбец5Строка094","m.nCol5Row094","Header"]
["Столбец6Строка094","m.nCol6Row094","Header"]
["Столбец7Строка094","m.nCol7Row094","Header"]
["Столбец8Строка094","m.nCol8Row094","Header"]
["Столбец4Строка095","m.nCol4Row095","Header"]
["Столбец5Строка095","m.nCol5Row095","Header"]
["Столбец6Строка095","m.nCol6Row095","Header"]
["Столбец7Строка095","m.nCol7Row095","Header"]
["Столбец8Строка095","m.nCol8Row095","Header"]
["Столбец4Строка096","m.nCol4Row096","Header"]
["Столбец5Строка096","m.nCol5Row096","Header"]
["Столбец6Строка096","m.nCol6Row096","Header"]
["Столбец7Строка096","m.nCol7Row096","Header"]
["Столбец8Строка096","m.nCol8Row096","Header"]
["Столбец4Строка097","m.nCol4Row097","Header"]
["Столбец5Строка097","m.nCol5Row097","Header"]
["Столбец6Строка097","m.nCol6Row097","Header"]
["Столбец7Строка097","m.nCol7Row097","Header"]
["Столбец8Строка097","m.nCol8Row097","Header"]
["Столбец4Строка098","m.nCol4Row098","Header"]
["Столбец5Строка098","m.nCol5Row098","Header"]
["Столбец6Строка098","m.nCol6Row098","Header"]
["Столбец7Строка098","m.nCol7Row098","Header"]
["Столбец8Строка098","m.nCol8Row098","Header"]
["Столбец4Строка101","m.nCol4Row101","Header"]
["Столбец5Строка101","m.nCol5Row101","Header"]
["Столбец6Строка101","m.nCol6Row101","Header"]
["Столбец7Строка101","m.nCol7Row101","Header"]
["Столбец4Строка102","m.nCol4Row102","Header"]
["Столбец5Строка102","m.nCol5Row102","Header"]
["Столбец6Строка102","m.nCol6Row102","Header"]
["Столбец7Строка102","m.nCol7Row102","Header"]
["Столбец4Строка103","m.nCol4Row103","Header"]
["Столбец5Строка103","m.nCol5Row103","Header"]
["Столбец6Строка103","m.nCol6Row103","Header"]
["Столбец7Строка103","m.nCol7Row103","Header"]
["Столбец4Строка104","m.nCol4Row104","Header"]
["Столбец5Строка104","m.nCol5Row104","Header"]
["Столбец6Строка104","m.nCol6Row104","Header"]
["Столбец7Строка104","m.nCol7Row104","Header"]
["Столбец8Строка104","m.nCol8Row104","Header"]
["Столбец4Строка161","m.nCol4Row161","Header"]
["Столбец5Строка161","m.nCol5Row161","Header"]
["Столбец6Строка161","m.nCol6Row161","Header"]
["Столбец7Строка161","m.nCol7Row161","Header"]
["Столбец8Строка161","m.nCol8Row161","Header"]
["Столбец4Строка162","m.nCol4Row162","Header"]
["Столбец5Строка162","m.nCol5Row162","Header"]
["Столбец6Строка162","m.nCol6Row162","Header"]
["Столбец7Строка162","m.nCol7Row162","Header"]
["Столбец8Строка162","m.nCol8Row162","Header"]
["Столбец4Строка163","m.nCol4Row163","Header"]
["Столбец5Строка163","m.nCol5Row163","Header"]
["Столбец6Строка163","m.nCol6Row163","Header"]
["Столбец7Строка163","m.nCol7Row163","Header"]
["Столбец8Строка163","m.nCol8Row163","Header"]
["Столбец4Строка171","m.nCol4Row171","Header"]
["Столбец5Строка171","m.nCol5Row171","Header"]
["Столбец6Строка171","m.nCol6Row171","Header"]
["Столбец7Строка171","m.nCol7Row171","Header"]
["Столбец8Строка171","m.nCol8Row171","Header"]
["Столбец4Строка172","m.nCol4Row172","Header"]
["Столбец5Строка172","m.nCol5Row172","Header"]
["Столбец6Строка172","m.nCol6Row172","Header"]
["Столбец7Строка172","m.nCol7Row172","Header"]
["Столбец8Строка172","m.nCol8Row172","Header"]
["Столбец4Строка173","m.nCol4Row173","Header"]
["Столбец5Строка173","m.nCol5Row173","Header"]
["Столбец6Строка173","m.nCol6Row173","Header"]
["Столбец7Строка173","m.nCol7Row173","Header"]
["Столбец8Строка173","m.nCol8Row173","Header"]
["Столбец4Строка174","m.nCol4Row174","Header"]
["Столбец5Строка174","m.nCol5Row174","Header"]
["Столбец6Строка174","m.nCol6Row174","Header"]
["Столбец7Строка174","m.nCol7Row174","Header"]
["Столбец8Строка174","m.nCol8Row174","Header"]
["Столбец4Строка175","m.nCol4Row175","Header"]
["Столбец5Строка175","m.nCol5Row175","Header"]
["Столбец6Строка175","m.nCol6Row175","Header"]
["Столбец7Строка175","m.nCol7Row175","Header"]
["Столбец8Строка175","m.nCol8Row175","Header"]
["Столбец4Строка176","m.nCol4Row176","Header"]
["Столбец5Строка176","m.nCol5Row176","Header"]
["Столбец6Строка176","m.nCol6Row176","Header"]
["Столбец7Строка176","m.nCol7Row176","Header"]
["Столбец8Строка176","m.nCol8Row176","Header"]
["Столбец4Строка191","m.nCol4Row191","Header"]
["Столбец5Строка191","m.nCol5Row191","Header"]
["Столбец6Строка191","m.nCol6Row191","Header"]
["Столбец7Строка191","m.nCol7Row191","Header"]
["Столбец8Строка191","m.nCol8Row191","Header"]
["Столбец4Строка192","m.nCol4Row192","Header"]
["Столбец5Строка192","m.nCol5Row192","Header"]
["Столбец6Строка192","m.nCol6Row192","Header"]
["Столбец7Строка192","m.nCol7Row192","Header"]
["Столбец8Строка192","m.nCol8Row192","Header"]
["Столбец4Строка211","m.nCol4Row211","Header"]
["Столбец5Строка211","m.nCol5Row211","Header"]
["Столбец6Строка211","m.nCol6Row211","Header"]
["Столбец7Строка211","m.nCol7Row211","Header"]
["Столбец8Строка211","m.nCol8Row211","Header"]
["Столбец4Строка212","m.nCol4Row212","Header"]
["Столбец5Строка212","m.nCol5Row212","Header"]
["Столбец6Строка212","m.nCol6Row212","Header"]
["Столбец7Строка212","m.nCol7Row212","Header"]
["Столбец8Строка212","m.nCol8Row212","Header"]
["Столбец4Строка232","m.nCol4Row232","Header"]
["Столбец5Строка232","m.nCol5Row232","Header"]
["Столбец6Строка232","m.nCol6Row232","Header"]
["Столбец7Строка232","m.nCol7Row232","Header"]
["Столбец8Строка232","m.nCol8Row232","Header"]
["Столбец4Строка233","m.nCol4Row233","Header"]
["Столбец5Строка233","m.nCol5Row233","Header"]
["Столбец6Строка233","m.nCol6Row233","Header"]
["Столбец7Строка233","m.nCol7Row233","Header"]
["Столбец8Строка233","m.nCol8Row233","Header"]
["Столбец4Строка242","m.nCol4Row242","Header"]
["Столбец5Строка242","m.nCol5Row242","Header"]
["Столбец6Строка242","m.nCol6Row242","Header"]
["Столбец7Строка242","m.nCol7Row242","Header"]
["Столбец8Строка242","m.nCol8Row242","Header"]
["Столбец4Строка243","m.nCol4Row243","Header"]
["Столбец5Строка243","m.nCol5Row243","Header"]
["Столбец6Строка243","m.nCol6Row243","Header"]
["Столбец7Строка243","m.nCol7Row243","Header"]
["Столбец8Строка243","m.nCol8Row243","Header"]
["Столбец4Строка250","m.nCol4Row250","Header"]
["Столбец5Строка250","m.nCol5Row250","Header"]
["Столбец6Строка250","m.nCol6Row250","Header"]
["Столбец7Строка250","m.nCol7Row250","Header"]
["Столбец8Строка250","m.nCol8Row250","Header"]
["Столбец4Строка261","m.nCol4Row261","Header"]
["Столбец5Строка261","m.nCol5Row261","Header"]
["Столбец6Строка261","m.nCol6Row261","Header"]
["Столбец7Строка261","m.nCol7Row261","Header"]
["Столбец8Строка261","m.nCol8Row261","Header"]
["Столбец4Строка262","m.nCol4Row262","Header"]
["Столбец5Строка262","m.nCol5Row262","Header"]
["Столбец6Строка262","m.nCol6Row262","Header"]
["Столбец7Строка262","m.nCol7Row262","Header"]
["Столбец8Строка262","m.nCol8Row262","Header"]
["Столбец4Строка263","m.nCol4Row263","Header"]
["Столбец5Строка263","m.nCol5Row263","Header"]
["Столбец6Строка263","m.nCol6Row263","Header"]
["Столбец7Строка263","m.nCol7Row263","Header"]
["Столбец8Строка263","m.nCol8Row263","Header"]
["Столбец4Строка264","m.nCol4Row264","Header"]
["Столбец5Строка264","m.nCol5Row264","Header"]
["Столбец6Строка264","m.nCol6Row264","Header"]
["Столбец7Строка264","m.nCol7Row264","Header"]
["Столбец8Строка264","m.nCol8Row264","Header"]
["Столбец4Строка271","m.nCol4Row271","Header"]
["Столбец5Строка271","m.nCol5Row271","Header"]
["Столбец6Строка271","m.nCol6Row271","Header"]
["Столбец7Строка271","m.nCol7Row271","Header"]
["Столбец8Строка271","m.nCol8Row271","Header"]
["Столбец4Строка272","m.nCol4Row272","Header"]
["Столбец5Строка272","m.nCol5Row272","Header"]
["Столбец6Строка272","m.nCol6Row272","Header"]
["Столбец7Строка272","m.nCol7Row272","Header"]
["Столбец8Строка272","m.nCol8Row272","Header"]
["Столбец4Строка273","m.nCol4Row273","Header"]
["Столбец5Строка273","m.nCol5Row273","Header"]
["Столбец6Строка273","m.nCol6Row273","Header"]
["Столбец7Строка273","m.nCol7Row273","Header"]
["Столбец8Строка273","m.nCol8Row273","Header"]
["Столбец5Строка521","m.nCol5Row521","Header"]
["Столбец6Строка521","m.nCol6Row521","Header"]
["Столбец7Строка521","m.nCol7Row521","Header"]
["Столбец8Строка521","m.nCol8Row521","Header"]
["Столбец5Строка525","m.nCol5Row525","Header"]
["Столбец6Строка525","m.nCol6Row525","Header"]
["Столбец7Строка525","m.nCol7Row525","Header"]
["Столбец8Строка525","m.nCol8Row525","Header"]
["Столбец5Строка526","m.nCol5Row526","Header"]
["Столбец6Строка526","m.nCol6Row526","Header"]
["Столбец7Строка526","m.nCol7Row526","Header"]
["Столбец8Строка526","m.nCol8Row526","Header"]
["Столбец5Строка527","m.nCol5Row527","Header"]
["Столбец6Строка527","m.nCol6Row527","Header"]
["Столбец7Строка527","m.nCol7Row527","Header"]
["Столбец8Строка527","m.nCol8Row527","Header"]
["Столбец5Строка528","m.nCol5Row528","Header"]
["Столбец6Строка528","m.nCol6Row528","Header"]
["Столбец7Строка528","m.nCol7Row528","Header"]
["Столбец8Строка528","m.nCol8Row528","Header"]
["Столбец5Строка625","m.nCol5Row625","Header"]
["Столбец6Строка625","m.nCol6Row625","Header"]
["Столбец7Строка625","m.nCol7Row625","Header"]
["Столбец8Строка625","m.nCol8Row625","Header"]
["Столбец5Строка626","m.nCol5Row626","Header"]
["Столбец6Строка626","m.nCol6Row626","Header"]
["Столбец7Строка626","m.nCol7Row626","Header"]
["Столбец8Строка626","m.nCol8Row626","Header"]
["Столбец4Строка700","m.nCol4Row700","Header"]
["Столбец5Строка710","m.nCol5Row710","Header"]
["Столбец6Строка710","m.nCol6Row710","Header"]
["Столбец7Строка710","m.nCol7Row710","Header"]
["Столбец5Строка720","m.nCol5Row720","Header"]
["Столбец6Строка720","m.nCol6Row720","Header"]
["Столбец7Строка720","m.nCol7Row720","Header"]
["Столбец5Строка731","m.nCol5Row731","Header"]
["Столбец6Строка731","m.nCol6Row731","Header"]
["Столбец7Строка731","m.nCol7Row731","Header"]
["Столбец5Строка732","m.nCol5Row732","Header"]
["Столбец6Строка732","m.nCol6Row732","Header"]
["Столбец7Строка732","m.nCol7Row732","Header"]
["Столбец8Строка732","m.nCol8Row732","Header"]
["Столбец5Строка821","m.nCol5Row821","Header"]
["Столбец6Строка821","m.nCol6Row821","Header"]
["Столбец5Строка822","m.nCol5Row822","Header"]
["Столбец6Строка822","m.nCol6Row822","Header"]
["Столбец5Строка831","m.nCol5Row831","Header"]
["Столбец6Строка831","m.nCol6Row831","Header"]
["Столбец7Строка831","m.nCol7Row831","Header"]
["Столбец8Строка831","m.nCol8Row831","Header"]
["Столбец5Строка832","m.nCol5Row832","Header"]
["Столбец6Строка832","m.nCol6Row832","Header"]
["Столбец7Строка832","m.nCol7Row832","Header"]
["Столбец8Строка832","m.nCol8Row832","Header"]
["Столбец1Строка901","AllTrim(This.Seek_TableFields(\"fEconCl\", \"Code\", \"fEconCl.Name\", PadR(curVPL.Code, 8)))","Spec4"]
["Столбец3Строка901","curVPL.Code","Spec4"]
["Столбец4Строка901","curVPL.Col4","Spec4"]
["Столбец5Строка901","curVPL.Col5","Spec4"]
["Столбец6Строка901","curVPL.Col6","Spec4"]
["Столбец7Строка901","curVPL.Col7","Spec4"]
["Руководитель","This.__GetOrgBoss(__p_OrgRn, 2)","Footer"]
["ГлБух","This.__GetOrgAcc(__p_OrgRn, 2)","Footer"]
["Исполнитель","AllTrim(m.cIspName)","Footer"]
["Телефон","AllTrim(m.cIspTel)","Footer"]
["txt_fileName","m.cFileName","Footer"]
["МФКОДФ","m.cFormCode","Footer"]
["МФПРД","Iif(!Empty(m.dReoDate) Or Month(m.dDateEnd + 1) = 1, \"5\", Iif(Month(m.dDateEnd + 1) = 7, \"6\", Iif(InList(Month(m.dDateEnd + 1), 4, 10), \"4\", \"\")))","Footer"]
["МФДатаПо","DToC2000(__p_Date)","Footer"]
["МФИСТ","m.cIST","Footer"]
["МФРуководитель","This.__GetOrgBoss(__p_OrgRn, 2)","Footer"]
["МФИсполнитель","AllTrim(m.cIspName)","Footer"]
["МФТелефон","AllTrim(m.cIspTel)","Footer"]
["МФППО","Left(AllTrim(oSystem.SystemCaption), 50)","Footer"]
[null,"Выгрузка в ГНИ 4"]
["ГНИ4_ИдФайл","m.cFileId4","Footer"]
["ГНИ4_ВерсПрог","Left(Alltrim(oSystem.SystemCaption), 40)","Footer"]
["ГНИ4_ДатаДок","DToC2000(oSystem.Date)","Footer"]
["ГНИ4_ДатаОтч","DToC2000(oSystem.Date)","Footer"]
["ГНИ4_ОтчетГод","Year(dSelDate)","Footer"]
["ГНИ4_ОКПО","AllTrim(This.Seek_TableFields(\"Org\", \"RN\", \"Org.OKPO\", __p_OrgRn))","Footer"]
["ГНИ4_ОКАТО","AllTrim(This.Seek_TableFields(\"OrgBase\", \"RN\", \"OrgBase.OKATO\", __p_OrgRn))","Footer"]
["ГНИ4_ОКПО_Учр","AllTrim(This.Seek_TableFields(\"Org\", \"RN\", \"Org.OKPO\", m.cRN_Found))","Footer"]
["ГНИ4_ГлаваБК","AllTrim(m.glBK)","Footer"]
["ГНИ4_НаимОрг","This.__getOrgName(__p_OrgRn)","Footer"]
[null,"__p_INN = AllTrim(This.Seek_TableFields(\"OrgBase\", \"RN\", \"OrgBase.INN\", __p_OrgRn))","Footer"]
[null,"__p_pos = AT(\"/\", __p_INN)","Footer"]
["ГНИ4_ИННЮЛ","Iif(__p_pos = 0, __p_INN, AllTrim(Left(__p_INN, __p_pos - 1)))","Footer"]
["ГНИ4_КПП","Iif(__p_pos = 0, \"\", AllTrim(SubStr(__p_INN, __p_pos + 1)))","Footer"]
["ГНИ4_Учредит","This.__getOrgName(m.cRN_Found)","Footer"]
["ГНИ4_УчредПолн","This.__getOrgName(m.cRN_Found)","Footer"]
["ГНИ4_ПрПодп","Iif(Empty(m.cAgent_RN), 1, 2)","Footer"]
[null,"__p_BossRN = Iif(Empty(m.cAgent_RN), PadR(This.Seek_TableFields(\"Org\", \"RN\", \"Org.Boss_RN\", __p_OrgRn), 4), m.cAgent_RN)","Footer"]
["ГНИ4_Фамилия","AllTrim(This.Seek_TableFields(\"Person\", \"RN\", \"Person.SurName\", __p_BossRN))","Footer"]
["ГНИ4_Имя","AllTrim(This.Seek_TableFields(\"Person\", \"RN\", \"Person.FirstName\", __p_BossRN))","Footer"]
["ГНИ4_Отчество","AllTrim(This.Seek_TableFields(\"Person\", \"RN\", \"Person.SecondName\", __p_BossRN))","Footer"]
[null,"__p_AccRN =  PadR(This.Seek_TableFields(\"Org\", \"RN\", \"Org.Acc_RN\", __p_OrgRn), 4)","Footer"]
["ГНИ4_Фамилия2","AllTrim(This.Seek_TableFields(\"Person\", \"RN\", \"Person.SurName\", __p_AccRN))","Footer"]
["ГНИ4_Имя2","AllTrim(This.Seek_TableFields(\"Person\", \"RN\", \"Person.FirstName\", __p_AccRN))","Footer"]
["ГНИ4_Отчество2","AllTrim(This.Seek_TableFields(\"Person\", \"RN\", \"Person.SecondName\", __p_AccRN))","Footer"]
["ГНИ4_СвПред","Iif(Empty(m.cAgent_RN), \"\", \"*\")","Footer"]
["ГНИ4_НаимДок","Iif(Empty(m.cAgent_RN), \"\", AllTrim(m.cAgentDoc))","Footer"]
["ГНИ4_ВФО","m.cVFO","Footer"]
[null,"Выгрузка на сайт bus.gov.ru"]
["CreateDate","ttoc(DATETIME())","Footer"]
["GUIDPK","m.cGUIDPk","Footer"]
["GUIDPZ","m.cGUIDPz","Footer"]
["regNumIn","m.cNumGMU_In","Footer"]
["FullName","AllTrim(This.__getOrgName(__p_OrgRn))","Footer"]
[null,"__p_INN = AllTrim(This.Seek_TableFields(\"OrgBase\", \"RN\", \"OrgBase.INN\", __p_OrgRn))","Footer"]
[null,"__p_pos = AT(\"/\", __p_INN)","Footer"]
["INNPlacer","Iif(__p_pos = 0, __p_INN, AllTrim(Left(__p_INN, __p_pos - 1)))","Footer"]
["KPPPlacer","Iif(__p_pos = 0, \"\", AllTrim(SubStr(__p_INN, __p_pos + 1)))","Footer"]
["regNumOut","m.cNumGMU_Out","Footer"]
["fullNameOut","This.__getOrgName(m.cRN_Found)","Footer"]
["GeneralDate","DToC2000(__p_Date)","Footer"]
[null,"__p_DateGeneral = __p_Date - 1","Footer"]
["periodicity","IIf(InList(Month(__p_DateGeneral),3,6,9),\"quarter\",IIF(InList(Month(__p_DateGeneral),12),\"annual\",\"\"))","Footer"]
["OKPOCode","AllTrim(This.Seek_TableFields(\"Org\", \"RN\", \"Org.OKPO\", __p_OrgRn))","Footer"]
["OKATOCode","AllTrim(This.Seek_TableFields(\"OrgBase\", \"RN\", \"OrgBase.OKATO\", __p_OrgRn))","Footer"]
["FormatPeriod","Alltrim(Str(Year(dSelDate)))","Footer"]
["Section","Alltrim(m.glBK)","Footer"]
["founderName","This.__getOrgName(m.cRN_Found)","Footer"]
["founderOKPO","AllTrim(This.Seek_TableFields(\"Org\", \"RN\", \"Org.OKPO\", m.cRN_Found))","Footer"]
["typeFinancialSupport","Allt(cVFO)","Footer"]
["xml_fileName","m.cFileName4","Footer"]
["xml_fileName8","m.cFileName8","Footer"]
[null,"This.Book.Sheet = 1","Footer"]
[null,"This.Tag = \"textout\"","Footer"]
[null,"This.Book.PrecisionAsDisplayed = .T.","Footer"]

{"sheet":"Выгрузка в ГНИ 4","index":2,"n_rows":872,"n_cols":10,"rows_kept":872,"cut":false,"hidden":false,"merged":[]}
["Путь к файлу выгрузки: ",null,"E:\\OBMEN\\ОКРУЖКО\\Выгрузка отчетов\\ГНИ ф. 737-5\\NO_BOUCHR6.2_6446_6446_6446010014644601001_20160215_1.xml"]
[null,null,null,null,null,null,"<textout version=\"1.0\" caption=\"Выгрузка в ГНИ 4\"/>"]
[null,null,null,null,null,null,"<btn page=\"Выгрузка в ГНИ 4\" coord=\"(450, 90, 100, 25)\"/>"]
["Корень","Файл",null,"*",null,null,null,null,null,"Файл обмена"]
["Атрибут","ИдФайл","NO_BOUCHR6.2_6446_6446_6446010014644601001_20160215_1","*",null,null,null,null,null,"Идентификатор файла"]
["Атрибут","ВерсПрог","ПАРУС Бухгалтерия","*",null,null,null,null,null,"Версия передающей  программы"]
["Атрибут","ВерсФорм","5.02","*",null,null,null,null,null,"Версия формата"]
["Элемент","Документ",null,"*",null,null,null,null,null,"Состав и структура документа"]
["Атрибут","КНД","0503737","*",null,null,null,null,null,"Код формы отчетности по КНД"]
["Атрибут","ДатаДок","15.02.2016","*",null,null,null,null,null,"Дата формирования документа"]
["Атрибут","Период","34","*",null,null,null,null,null,"Отчетный период"]
["Атрибут","ОтчетГод","2015","*",null,null,null,null,null,"Отчетный год"]
["Атрибут","НомКорр","0","*",null,null,null,null,null,"Номер корректировки"]
["Элемент","СвНП",null,"*",null,null,null,null,null,"Сведения о налогоплательщике"]
["Атрибут","ОКПО","36172359",null,null,null,null,null,null,"Код по ОКПО"]
["Атрибут","ОКАТО","63440000000",null,null,null,null,null,null,"Код по ОКАТО"]
["Атрибут","ОКПО_Учр","",null,null,null,null,null,null,"Код органа, осуществляющего полномочия учредителя по ОКПО"]
["Атрибут","ВидФО","2","*",null,null,null,null,null,"Вид финансового обеспечения (деятельности) учреждения"]
["Атрибут","ГлаваБК","",null,null,null,null,null,null,"Глава по БК"]
["Элемент","НПЮЛ",null,"*",null,null,null,null,null,"Налогоплательщик – учреждение"]
["Атрибут","НаимОрг","УФК по Саратовской области (Фин. управление администрации Ртищевского муницип. района СОШ №3 )","*",null,null,null,null,null,"Наименование учреждения"]
["Атрибут","ИННЮЛ","6446010014","*",null,null,null,null,null,"ИНН учреждения"]
["Атрибут","КПП","644601001","*",null,null,null,null,null,"КПП учреждения"]
["Атрибут","НаимОП",null,null,null,null,null,null,null,"Наименование обособленного подразделения"]
["Атрибут","Учредит","",null,null,null,null,null,null,"Учредитель"]
["Атрибут","УчредПолн","",null,null,null,null,null,null,"Наименование органа, осуществляющего полномочия учредителя"]
["###"]
["###"]
["Элемент","Подписант",null,"*",null,null,null,null,null,"Сведения о лице, подписавшем документ"]
["Атрибут","ПрПодп","1","*",null,null,null,null,null,"Признак лица, подписавшего документ (1 - руководитель, 2 – уполномоченный представитель)"]
["Атрибут","Тлф",null,null,null,null,null,null,null,"Номер контактного телефона"]
["Атрибут","E-mail",null,null,null,null,null,null,null,"E-mail"]
["Элемент","ФИО",null,"*",null,null,null,null,null,"Фамилия, имя, отчество руководителя (уполномоченного представителя)"]
["Атрибут","Фамилия","Рудаева","*",null,null,null,null,null,"Фамилия"]
["Атрибут","Имя","Светлана","*",null,null,null,null,null,"Имя"]
["Атрибут","Отчество","Владимировна",null,null,null,null,null,null,"Отчество"]
["###"]
["Элемент","ФИОГлБух",null,null,null,null,null,null,null,"Фамилия, имя, отчество главного бухгалтера"]
["Атрибут","Фамилия","Окружко","*",null,null,null,null,null,"Фамилия"]
["Атрибут","Имя","Наталья","*",null,null,null,null,null,"Имя"]
["Атрибут","Отчество","Григорьевна",null,null,null,null,null,null,"Отчество"]
["###"]
["Элемент","ФИОРукПЭС",null,null,null,null,null,null,null,"Фамилия, имя, отчество руководителя планово-экономической службы"]
["Атрибут","Фамилия",null,"*",null,null,null,null,null,"Фамилия"]
["Атрибут","Имя",null,"*",null,null,null,null,null,"Имя"]
["Атрибут","Отчество",null,null,null,null,null,null,null,"Отчество"]
["###"]
["Элемент","СвПред",null,"",null,null,null,null,null,"Сведения об уполномоченном представителе"]
["Атрибут","НаимДок","","*",null,null,null,null,null,"Наименование документа, подтверждающего полномочия представителя"]
["###"]
["###"]
["Элемент","ОтчетПланФХД",null,"*",null,null,null,null,null,"Отчет об исполнении учреждением плана его финансово-хозяйственной деятельности"]
["Атрибут","ДатаОтч","15.02.2016","*",null,null,null,null,null,"Дата, на которую сформирован документ"]
["Атрибут","ОКЕИ","383","*",null,null,null,null,null,"Код единицы измерения по ОКЕИ"]
["Элемент","Доход",null,null,null,null,null,null,null,"Доходы учреждения"]
["Элемент","ДохВс",null,"*",null,null,null,null,null,"Доходы всего"]
["Атрибут","КодАналит",null,null,null,null,null,null,null,"Код аналитики"]
["Атрибут","УтвПланНазн",{"$f":"Отчет!D18","v":1521892},null,null,null,null,null,null,"Утверждено плановых назначений"]
["Атрибут","ИспЛицСч",{"$f":"Отчет!E18","v":1521892},null,null,null,null,null,null,"Исполнено плановых назначений через лицевые счета"]
["Атрибут","ИспБанкСч",{"$f":"Отчет!F18","v":0},null,null,null,null,null,null,"Исполнено плановых назначений через банковские счета"]
["Атрибут","ИспКасУчр",{"$f":"Отчет!G18","v":0},null,null,null,null,null,null,"Исполнено плановых назначений через кассу учреждения"]
["Атрибут","ИспНекасОп",{"$f":"Отчет!H18","v":0},null,null,null,null,null,null,"Исполнено плановых назначений некассовыми операциями"]
["Атрибут","ИспИтого",{"$f":"Отчет!I18","v":1521892},null,null,null,null,null,null,"Исполнено плановых назначений итого"]
["Атрибут","НеИспПланНазн",{"$f":"Отчет!J18","v":0},null,null,null,null,null,null,"Не исполнено плановых назначений"]
["###"]
["Элемент","ДохСобств",null,null,null,null,null,null,null,"Доходы от собственности"]
["Элемент","ДохСобствВс",null,"*",null,null,null,null,null,"Доходы от собственности всего"]
["Атрибут","КодАналит",{"$f":"Отчет!C19","v":"120"},null,null,null,null,null,null,"Код аналитики"]
["Атрибут","УтвПланНазн",{"$f":"Отчет!D19","v":0},null,null,null,null,null,null,"Утверждено плановых назначений"]
["Атрибут","ИспЛицСч",{"$f":"Отчет!E19","v":0},null,null,null,null,null,null,"Исполнено плановых назначений через лицевые счета"]
["Атрибут","ИспБанкСч",{"$f":"Отчет!F19","v":0},null,null,null,null,null,null,"Исполнено плановых назначений через банковские счета"]
["Атрибут","ИспКасУчр",{"$f":"Отчет!G19","v":0},null,null,null,null,null,null,"Исполнено плановых назначений через кассу учреждения"]
["Атрибут","ИспНекасОп",{"$f":"Отчет!H19","v":0},null,null,null,null,null,null,"Исполнено плановых назначений некассовыми операциями"]
["Атрибут","ИспИтого",{"$f":"Отчет!I19","v":0},null,null,null,null,null,null,"Исполнено плановых назначений итого"]
["Атрибут","НеИспПланНазн",{"$f":"Отчет!J19","v":0},null,null,null,null,null,null,"Не исполнено плановых назначений"]
["###"]
["Элемент","ДохАрендАкт",null,null,null,null,null,null,null,"От аренды активов"]
["Атрибут","КодАналит",{"$f":"Отчет!C21","v":"120"},null,null,null,null,null,null,"Код аналитики"]
["Атрибут","УтвПланНазн",{"$f":"Отчет!D21","v":0},null,null,null,null,null,null,"Утверждено плановых назначений"]
["Атрибут","ИспЛицСч",{"$f":"Отчет!E21","v":0},null,null,null,null,null,null,"Исполнено плановых назначений через лицевые счета"]
["Атрибут","ИспБанкСч",{"$f":"Отчет!F21","v":0},null,null,null,null,null,null,"Исполнено плановых назначений через банковские счета"]
["Атрибут","ИспКасУчр",{"$f":"Отчет!G21","v":0},null,null,null,null,null,null,"Исполнено плановых назначений через кассу учреждения"]
["Атрибут","ИспНекасОп",{"$f":"Отчет!H21","v":0},null,null,null,null,null,null,"Исполнено плановых назначений некассовыми операциями"]
["Атрибут","ИспИтого",{"$f":"Отчет!I21","v":0},null,null,null,null,null,null,"Исполнено плановых назначений итого"]
["Атрибут","НеИспПланНазн",{"$f":"Отчет!J21","v":0},null,null,null,null,null,null,"Не исполнено плановых назначений"]
["###"]
["###"]
["Элемент","ДохПлатУсл",null,null,null,null,null,null,null,"Доходы от оказания платных услуг (работ)"]
["Атрибут","КодАналит",{"$f":"Отчет!C22","v":"130"},null,null,null,null,null,null,"Код аналитики"]
["Атрибут","УтвПланНазн",{"$f":"Отчет!D22","v":1521892},null,null,null,null,null,null,"Утверждено плановых назначений"]
["Атрибут","ИспЛицСч",{"$f":"Отчет!E22","v":1521892},null,null,null,null,null,null,"Исполнено плановых назначений через лицевые счета"]
["Атрибут","ИспБанкСч",{"$f":"Отчет!F22","v":0},null,null,null,null,null,null,"Исполнено плановых назначений через банковские счета"]
["Атрибут","ИспКасУчр",{"$f":"Отчет!G22","v":0},null,null,null,null,null,null,"Исполнено плановых назначений через кассу учреждения"]
["Атрибут","ИспНекасОп",{"$f":"Отчет!H22","v":0},null,null,null,null,null,null,"Исполнено плановых назначений некассовыми операциями"]
["Атрибут","ИспИтого",{"$f":"Отчет!I22","v":1521892},null,null,null,null,null,null,"Исполнено плановых назначений итого"]
["Атрибут","НеИспПланНазн",{"$f":"Отчет!J22","v":0},null,null,null,null,null,null,"Не исполнено плановых назначений"]
["###"]
["Элемент","ДохШтраф",null,null,null,null,null,null,null,"Доходы от штрафов, пеней, иных сумм принудительного изъятия"]
["Атрибут","КодАналит",{"$f":"Отчет!C23","v":"140"},null,null,null,null,null,null,"Код аналитики"]
["Атрибут","УтвПланНазн",{"$f":"Отчет!D23","v":0},null,null,null,null,null,null,"Утверждено плановых назначений"]
["Атрибут","ИспЛицСч",{"$f":"Отчет!E23","v":0},null,null,null,null,null,null,"Исполнено плановых назначений через лицевые счета"]
["Атрибут","ИспБанкСч",{"$f":"Отчет!F23","v":0},null,null,null,null,null,null,"Исполнено плановых назначений через банковские счета"]
["Атрибут","ИспКасУчр",{"$f":"Отчет!G23","v":0},null,null,null,null,null,null,"Исполнено плановых назначений через кассу учреждения"]
["Атрибут","ИспНекасОп",{"$f":"Отчет!H23","v":0},null,null,null,null,null,null,"Исполнено плановых назначений некассовыми операциями"]
["Атрибут","ИспИтого",{"$f":"Отчет!I23","v":0},null,null,null,null,null,null,"Исполнено плановых назначений итого"]
["Атрибут","НеИспПланНазн",{"$f":"Отчет!J23","v":0},null,null,null,null,null,null,"Не исполнено плановых назначений"]
["###"]
["Элемент","БВПостБюдж",null,null,null,null,null,null,null,"Безвозмездные поступления от бюджетов"]
["Элемент","БВПостБюджВс",null,"*",null,null,null,null,null,"Безвозмездные поступления от бюджетов"]
["Атрибут","КодАналит",{"$f":"Отчет!C24","v":"150"},null,null,null,null,null,null,"Код аналитики"]
["Атрибут","УтвПланНазн",{"$f":"Отчет!D24","v":0},null,null,null,null,null,null,"Утверждено плановых назначений"]
["Атрибут","ИспЛицСч",{"$f":"Отчет!E24","v":0},null,null,null,null,null,null,"Исполнено плановых назначений через лицевые счета"]
["Атрибут","ИспБанкСч",{"$f":"Отчет!F24","v":0},null,null,null,null,null,null,"Исполнено плановых назначений через банковские счета"]
["Атрибут","ИспКасУчр",{"$f":"Отчет!G24","v":0},null,null,null,null,null,null,"Исполнено плановых назначений через кассу учреждения"]
["Атрибут","ИспНекасОп",{"$f":"Отчет!H24","v":0},null,null,null,null,null,null,"Исполнено плановых назначений некассовыми операциями"]
["Атрибут","ИспИтого",{"$f":"Отчет!I24","v":0},null,null,null,null,null,null,"Исполнено плановых назначений итого"]
["Атрибут","НеИспПланНазн",{"$f":"Отчет!J24","v":0},null,null,null,null,null,null,"Не исполнено плановых назначений"]
["###"]
["Элемент","ПостИно",null,null,null,null,null,null,null,"Безвозмездные поступления от бюджетов"]
["Атрибут","КодАналит",{"$f":"Отчет!C26","v":"152"},null,null,null,null,null,null,"Код аналитики"]
["Атрибут","УтвПланНазн",{"$f":"Отчет!D26","v":0},null,null,null,null,null,null,"Утверждено плановых назначений"]
["Атрибут","ИспЛицСч",{"$f":"Отчет!E26","v":0},null,null,null,null,null,null,"Исполнено плановых назначений через лицевые счета"]
["Атрибут","ИспБанкСч",{"$f":"Отчет!F26","v":0},null,null,null,null,null,null,"Исполнено плановых назначений через банковские счета"]
["Атрибут","ИспКасУчр",{"$f":"Отчет!G26","v":0},null,null,null,null,null,null,"Исполнено плановых назначений через кассу учреждения"]
["Атрибут","ИспНекасОп",{"$f":"Отчет!H26","v":0},null,null,null,null,null,null,"Исполнено плановых назначений некассовыми операциями"]
["Атрибут","ИспИтого",{"$f":"Отчет!I26","v":0},null,null,null,null,null,null,"Исполнено плановых назначений итого"]
["Атрибут","НеИспПланНазн",{"$f":"Отчет!J26","v":0},null,null,null,null,null,null,"Не исполнено плановых назначений"]
["###"]
["Элемент","ПостМФО",null,null,null,null,null,null,null,"Безвозмездные поступления от бюджетов"]
["Атрибут","КодАналит",{"$f":"Отчет!C27","v":"153"},null,null,null,null,null,null,"Код аналитики"]
["Атрибут","УтвПланНазн",{"$f":"Отчет!D27","v":0},null,null,null,null,null,null,"Утверждено плановых назначений"]
["Атрибут","ИспЛицСч",{"$f":"Отчет!E27","v":0},null,null,null,null,null,null,"Исполнено плановых назначений через лицевые счета"]
["Атрибут","ИспБанкСч",{"$f":"Отчет!F27","v":0},null,null,null,null,null,null,"Исполнено плановых назначений через банковские счета"]
["Атрибут","ИспКасУчр",{"$f":"Отчет!G27","v":0},null,null,null,null,null,null,"Исполнено плановых назначений через кассу учреждения"]
["Атрибут","ИспНекасОп",{"$f":"Отчет!H27","v":0},null,null,null,null,null,null,"Исполнено плановых назначений некассовыми операциями"]
["Атрибут","ИспИтого",{"$f":"Отчет!I27","v":0},null,null,null,null,null,null,"Исполнено плановых назначений итого"]
["Атрибут","НеИспПланНазн",{"$f":"Отчет!J27","v":0},null,null,null,null,null,null,"Не исполнено плановых назначений"]
["###"]
["###"]
["Элемент","ДохАктив",null,null,null,null,null,null,null,"Доходы от операций с активами"]
["Элемент","ДохАктивВс",null,"*",null,null,null,null,null,"Доходы от операций с активами всего"]
["Атрибут","УтвПланНазн",{"$f":"Отчет!D28","v":0},null,null,null,null,null,null,"Утверждено плановых назначений"]
["Атрибут","ИспЛицСч",{"$f":"Отчет!E28","v":0},null,null,null,null,null,null,"Исполнено плановых назначений через лицевые счета"]
["Атрибут","ИспБанкСч",{"$f":"Отчет!F28","v":0},null,null,null,null,null,null,"Исполнено плановых назначений через банковские счета"]
["Атрибут","ИспКасУчр",{"$f":"Отчет!G28","v":0},null,null,null,null,null,null,"Исполнено плановых назначений через кассу учреждения"]
["Атрибут","ИспНекасОп",{"$f":"Отчет!H28","v":0},null,null,null,null,null,null,"Исполнено плановых назначений некассовыми операциями"]
["Атрибут","ИспИтого",{"$f":"Отчет!I28","v":0},null,null,null,null,null,null,"Исполнено плановых назначений итого"]
["Атрибут","НеИспПланНазн",{"$f":"Отчет!J28","v":0},null,null,null,null,null,null,"Не исполнено плановых назначений"]
["###"]
["Элемент","ВыбытОС",null,null,null,null,null,null,null,"От выбытий основных средств"]
["Атрибут","КодАналит",{"$f":"Отчет!C30","v":"410"},null,null,null,null,null,null,"Код аналитики"]
["Атрибут","УтвПланНазн",{"$f":"Отчет!D30","v":0},null,null,null,null,null,null,"Утверждено плановых назначений"]
["Атрибут","ИспЛицСч",{"$f":"Отчет!E30","v":0},null,null,null,null,null,null,"Исполнено плановых назначений через лицевые счета"]
["Атрибут","ИспБанкСч",{"$f":"Отчет!F30","v":0},null,null,null,null,null,null,"Исполнено плановых назначений через банковские счета"]
["Атрибут","ИспКасУчр",{"$f":"Отчет!G30","v":0},null,null,null,null,null,null,"Исполнено плановых назначений через кассу учреждения"]
["Атрибут","ИспНекасОп",{"$f":"Отчет!H30","v":0},null,null,null,null,null,null,"Исполнено плановых назначений некассовыми операциями"]
["Атрибут","ИспИтого",{"$f":"Отчет!I30","v":0},null,null,null,null,null,null,"Исполнено плановых назначений итого"]
["Атрибут","НеИспПланНазн",{"$f":"Отчет!J30","v":0},null,null,null,null,null,null,"Не исполнено плановых назначений"]
["###"]
["Элемент","ВыбытНМА",null,null,null,null,null,null,null,"От выбытий нематериальных активов"]
["Атрибут","КодАналит",{"$f":"Отчет!C31","v":"420"},null,null,null,null,null,null,"Код аналитики"]
["Атрибут","УтвПланНазн",{"$f":"Отчет!D31","v":0},null,null,null,null,null,null,"Утверждено плановых назначений"]
["Атрибут","ИспЛицСч",{"$f":"Отчет!E31","v":0},null,null,null,null,null,null,"Исполнено плановых назначений через лицевые счета"]
["Атрибут","ИспБанкСч",{"$f":"Отчет!F31","v":0},null,null,null,null,null,null,"Исполнено плановых назначений через банковские счета"]
["Атрибут","ИспКасУчр",{"$f":"Отчет!G31","v":0},null,null,null,null,null,null,"Исполнено плановых назначений через кассу учреждения"]
["Атрибут","ИспНекасОп",{"$f":"Отчет!H31","v":0},null,null,null,null,null,null,"Исполнено плановых назначений некассовыми операциями"]
["Атрибут","ИспИтого",{"$f":"Отчет!I31","v":0},null,null,null,null,null,null,"Исполнено плановых назначений итого"]
["Атрибут","НеИспПланНазн",{"$f":"Отчет!J31","v":0},null,null,null,null,null,null,"Не исполнено плановых назначений"]
["###"]
["Элемент","ВыбНПрА",null,null,null,null,null,null,null,"От выбытий непроизведенных активов"]
["Атрибут","КодАналит",{"$f":"Отчет!C32","v":"430"},null,null,null,null,null,null,"Код аналитики"]
["Атрибут","УтвПланНазн",{"$f":"Отчет!D32","v":0},null,null,null,null,null,null,"Утверждено плановых назначений"]
["Атрибут","ИспЛицСч",{"$f":"Отчет!E32","v":0},null,null,null,null,null,null,"Исполнено плановых назначений через лицевые счета"]
["Атрибут","ИспБанкСч",{"$f":"Отчет!F32","v":0},null,null,null,null,null,null,"Исполнено плановых назначений через банковские счета"]
["Атрибут","ИспКасУчр",{"$f":"Отчет!G32","v":0},null,null,null,null,null,null,"Исполнено плановых назначений через кассу учреждения"]
["Атрибут","ИспНекасОп",{"$f":"Отчет!H32","v":0},null,null,null,null,null,null,"Исполнено плановых назначений некассовыми операциями"]
["Атрибут","ИспИтого",{"$f":"Отчет!I32","v":0},null,null,null,null,null,null,"Исполнено плановых назначений итого"]
["Атрибут","НеИспПланНазн",{"$f":"Отчет!J32","v":0},null,null,null,null,null,null,"Не исполнено плановых назначений"]
["###"]
["Элемент","ВыбМатЗ",null,null,null,null,null,null,null,"От выбытий материальных запасов"]
["Атрибут","КодАналит",{"$f":"Отчет!C33","v":"440"},null,null,null,null,null,null,"Код аналитики"]
["Атрибут","УтвПланНазн",{"$f":"Отчет!D33","v":0},null,null,null,null,null,null,"Утверждено плановых назначений"]
["Атрибут","ИспЛицСч",{"$f":"Отчет!E33","v":0},null,null,null,null,null,null,"Исполнено плановых назначений через лицевые счета"]
["Атрибут","ИспБанкСч",{"$f":"Отчет!F33","v":0},null,null,null,null,null,null,"Исполнено плановых назначений через банковские счета"]
["Атрибут","ИспКасУчр",{"$f":"Отчет!G33","v":0},null,null,null,null,null,null,"Исполнено плановых назначений через кассу учреждения"]
["Атрибут","ИспНекасОп",{"$f":"Отчет!H33","v":0},null,null,null,null,null,null,"Исполнено плановых назначений некассовыми операциями"]
["Атрибут","ИспИтого",{"$f":"Отчет!I33","v":0},null,null,null,null,null,null,"Исполнено плановых назначений итого"]
["Атрибут","НеИспПланНазн",{"$f":"Отчет!J33","v":0},null,null,null,null,null,null,"Не исполнено плановых назначений"]
["###"]
["Элемент","ВыбЦБ",null,null,null,null,null,null,null,"От выбытий ценных бумаг, кроме акций"]
["Атрибут","КодАналит",{"$f":"Отчет!C34","v":"620"},null,null,null,null,null,null,"Код аналитики"]
["Атрибут","УтвПланНазн",{"$f":"Отчет!D34","v":0},null,null,null,null,null,null,"Утверждено плановых назначений"]
["Атрибут","ИспЛицСч",{"$f":"Отчет!E34","v":0},null,null,null,null,null,null,"Исполнено плановых назначений через лицевые счета"]
["Атрибут","ИспБанкСч",{"$f":"Отчет!F34","v":0},null,null,null,null,null,null,"Исполнено плановых назначений через банковские счета"]
["Атрибут","ИспКасУчр",{"$f":"Отчет!G34","v":0},null,null,null,null,null,null,"Исполнено плановых назначений через кассу учреждения"]
["Атрибут","ИспНекасОп",{"$f":"Отчет!H34","v":0},null,null,null,null,null,null,"Исполнено плановых назначений некассовыми операциями"]
["Атрибут","ИспИтого",{"$f":"Отчет!I34","v":0},null,null,null,null,null,null,"Исполнено плановых назначений итого"]
["Атрибут","НеИспПланНазн",{"$f":"Отчет!J34","v":0},null,null,null,null,null,null,"Не исполнено плановых назначений"]
["###"]
["Элемент","ВыбАкц",null,null,null,null,null,null,null,"От выбытий акций"]
["Атрибут","КодАналит",{"$f":"Отчет!C35","v":"630"},null,null,null,null,null,null,"Код аналитики"]
["Атрибут","УтвПланНазн",{"$f":"Отчет!D35","v":0},null,null,null,null,null,null,"Утверждено плановых назначений"]
["Атрибут","ИспЛицСч",{"$f":"Отчет!E35","v":0},null,null,null,null,null,null,"Исполнено плановых назначений через лицевые счета"]
["Атрибут","ИспБанкСч",{"$f":"Отчет!F35","v":0},null,null,null,null,null,null,"Исполнено плановых назначений через банковские счета"]
["Атрибут","ИспКасУчр",{"$f":"Отчет!G35","v":0},null,null,null,null,null,null,"Исполнено плановых назначений через кассу учреждения"]
["Атрибут","ИспНекасОп",{"$f":"Отчет!H35","v":0},null,null,null,null,null,null,"Исполнено плановых назначений некассовыми операциями"]
["Атрибут","ИспИтого",{"$f":"Отчет!I35","v":0},null,null,null,null,null,null,"Исполнено плановых назначений итого"]
["Атрибут","НеИспПланНазн",{"$f":"Отчет!J35","v":0},null,null,null,null,null,null,"Не исполнено плановых назначений"]
["###"]
["Элемент","ВыбИнФА",null,null,null,null,null,null,null,"От выбытий иных финансовых активов"]
["Атрибут","КодАналит",{"$f":"Отчет!C36","v":"650"},null,null,null,null,null,null,"Код аналитики"]
["Атрибут","УтвПланНазн",{"$f":"Отчет!D36","v":0},null,null,null,null,null,null,"Утверждено плановых назначений"]
["Атрибут","ИспЛицСч",{"$f":"Отчет!E36","v":0},null,null,null,null,null,null,"Исполнено плановых назначений через лицевые счета"]
["Атрибут","ИспБанкСч",{"$f":"Отчет!F36","v":0},null,null,null,null,null,null,"Исполнено плановых назначений через банковские счета"]
["Атрибут","ИспКасУчр",{"$f":"Отчет!G36","v":0},null,null,null,null,null,null,"Исполнено плановых назначений через кассу учреждения"]
["Атрибут","ИспНекасОп",{"$f":"Отчет!H36","v":0},null,null,null,null,null,null,"Исполнено плановых назначений некассовыми операциями"]
["Атрибут","ИспИтого",{"$f":"Отчет!I36","v":0},null,null,null,null,null,null,"Исполнено плановых назначений итого"]
["Атрибут","НеИспПланНазн",{"$f":"Отчет!J36","v":0},null,null,null,null,null,null,"Не исполнено плановых назначений"]
["###"]
["###"]
["Элемент","ДохПроч",null,null,null,null,null,null,null,"Прочие доходы"]
["Элемент","ДохПрочВс",null,"*",null,null,null,null,null,"Прочие доходы всего"]
["Атрибут","КодАналит",{"$f":"Отчет!C37","v":"180"},null,null,null,null,null,null,"Код аналитики"]
["Атрибут","УтвПланНазн",{"$f":"Отчет!D37","v":0},null,null,null,null,null,null,"Утверждено плановых назначений"]
["Атрибут","ИспЛицСч",{"$f":"Отчет!E37","v":0},null,null,null,null,null,null,"Исполнено плановых назначений через лицевые счета"]
["Атрибут","ИспБанкСч",{"$f":"Отчет!F37","v":0},null,null,null,null,null,null,"Исполнено плановых назначений через банковские счета"]
["Атрибут","ИспКасУчр",{"$f":"Отчет!G37","v":0},null,null,null,null,null,null,"Исполнено плановых назначений через кассу учреждения"]
["Атрибут","ИспНекасОп",{"$f":"Отчет!H37","v":0},null,null,null,null,null,null,"Исполнено плановых назначений некассовыми операциями"]
["Атрибут","ИспИтого",{"$f":"Отчет!I37","v":0},null,null,null,null,null,null,"Исполнено плановых назначений итого"]
["Атрибут","НеИспПланНазн",{"$f":"Отчет!J37","v":0},null,null,null,null,null,null,"Не исполнено плановых назначений"]
["###"]
["Элемент","СубГосЗадан",null,null,null,null,null,null,null,"Субсидии на выполнение государственного (муниципального) задания"]
["Атрибут","КодАналит",{"$f":"Отчет!C39","v":"180"},null,null,null,null,null,null,"Код аналитики"]
["Атрибут","УтвПланНазн",{"$f":"Отчет!D39","v":0},null,null,null,null,null,null,"Утверждено плановых назначений"]
["Атрибут","ИспЛицСч",{"$f":"Отчет!E39","v":0},null,null,null,null,null,null,"Исполнено плановых назначений через лицевые счета"]
["Атрибут","ИспБанкСч",{"$f":"Отчет!F39","v":0},null,null,null,null,null,null,"Исполнено плановых назначений через банковские счета"]
["Атрибут","ИспКасУчр",{"$f":"Отчет!G39","v":0},null,null,null,null,null,null,"Исполнено плановых назначений через кассу учреждения"]
["Атрибут","ИспНекасОп",{"$f":"Отчет!H39","v":0},null,null,null,null,null,null,"Исполнено плановых назначений некассовыми операциями"]
["Атрибут","ИспИтого",{"$f":"Отчет!I39","v":0},null,null,null,null,null,null,"Исполнено плановых назначений итого"]
["Атрибут","НеИспПланНазн",{"$f":"Отчет!J39","v":0},null,null,null,null,null,null,"Не исполнено плановых назначений"]
["###"]
["Элемент","СубИнЦел",null,null,null,null,null,null,null,"Субсидии на иные цели"]
["Атрибут","КодАналит",{"$f":"Отчет!C40","v":"180"},null,null,null,null,null,null,"Код аналитики"]
["Атрибут","УтвПланНазн",{"$f":"Отчет!D40","v":0},null,null,null,null,null,null,"Утверждено плановых назначений"]
["Атрибут","ИспЛицСч",{"$f":"Отчет!E40","v":0},null,null,null,null,null,null,"Исполнено плановых назначений через лицевые счета"]
["Атрибут","ИспБанкСч",{"$f":"Отчет!F40","v":0},null,null,null,null,null,null,"Исполнено плановых назначений через банковские счета"]
["Атрибут","ИспКасУчр",{"$f":"Отчет!G40","v":0},null,null,null,null,null,null,"Исполнено плановых назначений через кассу учреждения"]
["Атрибут","ИспНекасОп",{"$f":"Отчет!H40","v":0},null,null,null,null,null,null,"Исполнено плановых назначений некассовыми операциями"]
["Атрибут","ИспИтого",{"$f":"Отчет!I40","v":0},null,null,null,null,null,null,"Исполнено плановых назначений итого"]
["Атрибут","НеИспПланНазн",{"$f":"Отчет!J40","v":0},null,null,null,null,null,null,"Не исполнено плановых назначений"]
["###"]
["Элемент","БюджИнвест",null,null,null,null,null,null,null,"Бюджетные инвестиции"]
["Атрибут","КодАналит",{"$f":"Отчет!C41","v":"180"},null,null,null,null,null,null,"Код аналитики"]
["Атрибут","УтвПланНазн",{"$f":"Отчет!D41","v":0},null,null,null,null,null,null,"Утверждено плановых назначений"]
["Атрибут","ИспЛицСч",{"$f":"Отчет!E41","v":0},null,null,null,null,null,null,"Исполнено плановых назначений через лицевые счета"]
["Атрибут","ИспБанкСч",{"$f":"Отчет!F41","v":0},null,null,null,null,null,null,"Исполнено плановых назначений через банковские счета"]
["Атрибут","ИспКасУчр",{"$f":"Отчет!G41","v":0},null,null,null,null,null,null,"Исполнено плановых назначений через кассу учреждения"]
["Атрибут","ИспНекасОп",{"$f":"Отчет!H41","v":0},null,null,null,null,null,null,"Исполнено плановых назначений некассовыми операциями"]
["Атрибут","ИспИтого",{"$f":"Отчет!I41","v":0},null,null,null,null,null,null,"Исполнено плановых назначений итого"]
["Атрибут","НеИспПланНазн",{"$f":"Отчет!J41","v":0},null,null,null,null,null,null,"Не исполнено плановых назначений"]
["###"]
["Элемент","ДохИные",null,null,null,null,null,null,null,"Иные доходы"]
["Атрибут","КодАналит",{"$f":"Отчет!C42","v":"180"},null,null,null,null,null,null,"Код аналитики"]
["Атрибут","УтвПланНазн",{"$f":"Отчет!D42","v":0},null,null,null,null,null,null,"Утверждено плановых назначений"]
["Атрибут","ИспЛицСч",{"$f":"Отчет!E42","v":0},null,null,null,null,null,null,"Исполнено плановых назначений через лицевые счета"]
["Атрибут","ИспБанкСч",{"$f":"Отчет!F42","v":0},null,null,null,null,null,null,"Исполнено плановых назначений через банковские счета"]
["Атрибут","ИспКасУчр",{"$f":"Отчет!G42","v":0},null,null,null,null,null,null,"Исполнено плановых назначений через кассу учреждения"]
["Атрибут","ИспНекасОп",{"$f":"Отчет!H42","v":0},null,null,null,null,null,null,"Исполнено плановых назначений некассовыми операциями"]
["Атрибут","ИспИтого",{"$f":"Отчет!I42","v":0},null,null,null,null,null,null,"Исполнено плановых назначений итого"]
["Атрибут","НеИспПланНазн",{"$f":"Отчет!J42","v":0},null,null,null,null,null,null,"Не исполнено плановых назначений"]
["###"]
["###"]
["###",null,null,null,null,null,null,null,null,"ДОХОДЫ!"]
["Элемент","Расход",null,null,null,null,null,null,null,"Расходы учреждения"]
["Элемент","РасхВс",null,"*",null,null,null,null,null,"Расходы всего"]
["Атрибут","УтвПланНазн",{"$f":"Отчет!D48","v":1591054.11},null,null,null,null,null,null,"Утверждено плановых назначений"]
["Атрибут","ИспЛицСч",{"$f":"Отчет!E48","v":1441509.1},null,null,null,null,null,null,"Исполнено плановых назначений через лицевые счета"]
["Атрибут","ИспБанкСч",{"$f":"Отчет!F48","v":0},null,null,null,null,null,null,"Исполнено плановых назначений через банковские счета"]
["Атрибут","ИспКасУчр",{"$f":"Отчет!G48","v":0},null,null,null,null,null,null,"Исполнено плановых назначений через кассу учреждения"]
["Атрибут","ИспНекасОп",{"$f":"Отчет!H48","v":0},null,null,null,null,null,null,"Исполнено плановых назначений некассовыми операциями"]
["Атрибут","ИспИтого",{"$f":"Отчет!I48","v":1441509.1},null,null,null,null,null,null,"Исполнено плановых назначений итого"]
["Атрибут","НеИспПланНазн",{"$f":"Отчет!J48","v":149545.01},null,null,null,null,null,null,"Не исполнено плановых назначений"]
["###"]
["Элемент","ОплатТруд",null,null,null,null,null,null,null,"Оплата труда и начисления на выплаты по оплате труда"]
["Элемент","ОплатТрудВс",null,"*",null,null,null,null,null,"Оплата труда и начисления на выплаты по оплате труда всего"]
["Атрибут","КодАналит",{"$f":"Отчет!C50","v":"210"},null,null,null,null,null,null,"Код аналитики"]
["Атрибут","УтвПланНазн",{"$f":"Отчет!D50","v":16537.32},null,null,null,null,null,null,"Утверждено плановых назначений"]
["Атрибут","ИспЛицСч",{"$f":"Отчет!E50","v":16537.32},null,null,null,null,null,null,"Исполнено плановых назначений через лицевые счета"]
["Атрибут","ИспБанкСч",{"$f":"Отчет!F50","v":0},null,null,null,null,null,null,"Исполнено плановых назначений через банковские счета"]
["Атрибут","ИспКасУчр",{"$f":"Отчет!G50","v":0},null,null,null,null,null,null,"Исполнено плановых назначений через кассу учреждения"]
["Атрибут","ИспНекасОп",{"$f":"Отчет!H50","v":0},null,null,null,null,null,null,"Исполнено плановых назначений некассовыми операциями"]
["Атрибут","ИспИтого",{"$f":"Отчет!I50","v":16537.32},null,null,null,null,null,null,"Исполнено плановых назначений итого"]
["Атрибут","НеИспПланНазн",{"$f":"Отчет!J50","v":0},null,null,null,null,null,null,"Не исполнено плановых назначений"]
["###"]
["Элемент","ЗарабПлат",null,null,null,null,null,null,null,"Заработная плата"]
["Атрибут","КодАналит",{"$f":"Отчет!C52","v":"211"},null,null,null,null,null,null,"Код аналитики"]
["Атрибут","УтвПланНазн",{"$f":"Отчет!D52","v":12990.83},null,null,null,null,null,null,"Утверждено плановых назначений"]
["Атрибут","ИспЛицСч",{"$f":"Отчет!E52","v":12990.83},null,null,null,null,null,null,"Исполнено плановых назначений через лицевые счета"]
["Атрибут","ИспБанкСч",{"$f":"Отчет!F52","v":0},null,null,null,null,null,null,"Исполнено плановых назначений через банковские счета"]
["Атрибут","ИспКасУчр",{"$f":"Отчет!G52","v":0},null,null,null,null,null,null,"Исполнено плановых назначений через кассу учреждения"]
["Атрибут","ИспНекасОп",{"$f":"Отчет!H52","v":0},null,null,null,null,null,null,"Исполнено плановых назначений некассовыми операциями"]
["Атрибут","ИспИтого",{"$f":"Отчет!I52","v":12990.83},null,null,null,null,null,null,"Исполнено плановых назначений итого"]
["Атрибут","НеИспПланНазн",{"$f":"Отчет!J52","v":0},null,null,null,null,null,null,"Не исполнено плановых назначений"]
["###"]
["Элемент","ПрочВыпл",null,null,null,null,null,null,null,"Прочие выплаты"]
["Атрибут","КодАналит",{"$f":"Отчет!C53","v":"212"},null,null,null,null,null,null,"Код аналитики"]
["Атрибут","УтвПланНазн",{"$f":"Отчет!D53","v":0},null,null,null,null,null,null,"Утверждено плановых назначений"]
["Атрибут","ИспЛицСч",{"$f":"Отчет!E53","v":0},null,null,null,null,null,null,"Исполнено плановых назначений через лицевые счета"]
["Атрибут","ИспБанкСч",{"$f":"Отчет!F53","v":0},null,null,null,null,null,null,"Исполнено плановых назначений через банковские счета"]
["Атрибут","ИспКасУчр",{"$f":"Отчет!G53","v":0},null,null,null,null,null,null,"Исполнено плановых назначений через кассу учреждения"]
["Атрибут","ИспНекасОп",{"$f":"Отчет!H53","v":0},null,null,null,null,null,null,"Исполнено плановых назначений некассовыми операциями"]
["Атрибут","ИспИтого",{"$f":"Отчет!I53","v":0},null,null,null,null,null,null,"Исполнено плановых назначений итого"]
["Атрибут","НеИспПланНазн",{"$f":"Отчет!J53","v":0},null,null,null,null,null,null,"Не исполнено плановых назначений"]
["###"]
["Элемент","НачислВыплОТ",null,null,null,null,null,null,null,"Начисления на выплаты по оплате труда"]
["Атрибут","КодАналит",{"$f":"Отчет!C54","v":"213"},null,null,null,null,null,null,"Код аналитики"]
["Атрибут","УтвПланНазн",{"$f":"Отчет!D54","v":3546.49},null,null,null,null,null,null,"Утверждено плановых назначений"]
["Атрибут","ИспЛицСч",{"$f":"Отчет!E54","v":3546.49},null,null,null,null,null,null,"Исполнено плановых назначений через лицевые счета"]
["Атрибут","ИспБанкСч",{"$f":"Отчет!F54","v":0},null,null,null,null,null,null,"Исполнено плановых назначений через банковские счета"]
["Атрибут","ИспКасУчр",{"$f":"Отчет!G54","v":0},null,null,null,null,null,null,"Исполнено плановых назначений через кассу учреждения"]
["Атрибут","ИспНекасОп",{"$f":"Отчет!H54","v":0},null,null,null,null,null,null,"Исполнено плановых назначений некассовыми операциями"]
["Атрибут","ИспИтого",{"$f":"Отчет!I54","v":3546.49},null,null,null,null,null,null,"Исполнено плановых назначений итого"]
["Атрибут","НеИспПланНазн",{"$f":"Отчет!J54","v":0},null,null,null,null,null,null,"Не исполнено плановых назначений"]
["###"]
["###"]
["Элемент","ПриобРаб",null,null,null,null,null,null,null,"Приобретение работ, услуг"]
["Элемент","ПриобРабВс",null,"*",null,null,null,null,null,"Приобретение работ, услуг всего"]
["Атрибут","КодАналит",{"$f":"Отчет!C55","v":"220"},null,null,null,null,null,null,"Код аналитики"]
["Атрибут","УтвПланНазн",{"$f":"Отчет!D55","v":38438.480000000003},null,null,null,null,null,null,"Утверждено плановых назначений"]
["Атрибут","ИспЛицСч",{"$f":"Отчет!E55","v":38438.480000000003},null,null,null,null,null,null,"Исполнено плановых назначений через лицевые счета"]
["Атрибут","ИспБанкСч",{"$f":"Отчет!F55","v":0},null,null,null,null,null,null,"Исполнено плановых назначений через банковские счета"]
["Атрибут","ИспКасУчр",{"$f":"Отчет!G55","v":0},null,null,null,null,null,null,"Исполнено плановых назначений через кассу учреждения"]
["Атрибут","ИспНекасОп",{"$f":"Отчет!H55","v":0},null,null,null,null,null,null,"Исполнено плановых назначений некассовыми операциями"]
["Атрибут","ИспИтого",{"$f":"Отчет!I55","v":38438.480000000003},null,null,null,null,null,null,"Исполнено плановых назначений итого"]
["Атрибут","НеИспПланНазн",{"$f":"Отчет!J55","v":0},null,null,null,null,null,null,"Не исполнено плановых назначений"]
["###"]
["Элемент","УслугСвяз",null,null,null,null,null,null,null,"Услуги связи"]
["Атрибут","КодАналит",{"$f":"Отчет!C57","v":"221"},null,null,null,null,null,null,"Код аналитики"]
["Атрибут","УтвПланНазн",{"$f":"Отчет!D57","v":0},null,null,null,null,null,null,"Утверждено плановых назначений"]
["Атрибут","ИспЛицСч",{"$f":"Отчет!E57","v":0},null,null,null,null,null,null,"Исполнено плановых назначений через лицевые счета"]
["Атрибут","ИспБанкСч",{"$f":"Отчет!F57","v":0},null,null,null,null,null,null,"Исполнено плановых назначений через банковские счета"]
["Атрибут","ИспКасУчр",{"$f":"Отчет!G57","v":0},null,null,null,null,null,null,"Исполнено плановых назначений через кассу учреждения"]
["Атрибут","ИспНекасОп",{"$f":"Отчет!H57","v":0},null,null,null,null,null,null,"Исполнено плановых назначений некассовыми операциями"]
["Атрибут","ИспИтого",{"$f":"Отчет!I57","v":0},null,null,null,null,null,null,"Исполнено плановых назначений итого"]
["Атрибут","НеИспПланНазн",{"$f":"Отчет!J57","v":0},null,null,null,null,null,null,"Не исполнено плановых назначений"]
["###"]
["Элемент","ТранспУслуг",null,null,null,null,null,null,null,"Транспортные услуги"]
["Атрибут","КодАналит",{"$f":"Отчет!C58","v":"222"},null,null,null,null,null,null,"Код аналитики"]
["Атрибут","УтвПланНазн",{"$f":"Отчет!D58","v":0},null,null,null,null,null,null,"Утверждено плановых назначений"]
["Атрибут","ИспЛицСч",{"$f":"Отчет!E58","v":0},null,null,null,null,null,null,"Исполнено плановых назначений через лицевые счета"]
["Атрибут","ИспБанкСч",{"$f":"Отчет!F58","v":0},null,null,null,null,null,null,"Исполнено плановых назначений через банковские счета"]
["Атрибут","ИспКасУчр",{"$f":"Отчет!G58","v":0},null,null,null,null,null,null,"Исполнено плановых назначений через кассу учреждения"]
["Атрибут","ИспНекасОп",{"$f":"Отчет!H58","v":0},null,null,null,null,null,null,"Исполнено плановых назначений некассовыми операциями"]
["Атрибут","ИспИтого",{"$f":"Отчет!I58","v":0},null,null,null,null,null,null,"Исполнено плановых назначений итого"]
["Атрибут","НеИспПланНазн",{"$f":"Отчет!J58","v":0},null,null,null,null,null,null,"Не исполнено плановых назначений"]
["###"]
["Элемент","КоммунУслуг",null,null,null,null,null,null,null,"Коммунальные услуги"]
["Атрибут","КодАналит",{"$f":"Отчет!C59","v":"223"},null,null,null,null,null,null,"Код аналитики"]
["Атрибут","УтвПланНазн",{"$f":"Отчет!D59","v":0},null,null,null,null,null,null,"Утверждено плановых назначений"]
["Атрибут","ИспЛицСч",{"$f":"Отчет!E59","v":0},null,null,null,null,null,null,"Исполнено плановых назначений через лицевые счета"]
["Атрибут","ИспБанкСч",{"$f":"Отчет!F59","v":0},null,null,null,null,null,null,"Исполнено плановых назначений через банковские счета"]
["Атрибут","ИспКасУчр",{"$f":"Отчет!G59","v":0},null,null,null,null,null,null,"Исполнено плановых назначений через кассу учреждения"]
["Атрибут","ИспНекасОп",{"$f":"Отчет!H59","v":0},null,null,null,null,null,null,"Исполнено плановых назначений некассовыми операциями"]
["Атрибут","ИспИтого",{"$f":"Отчет!I59","v":0},null,null,null,null,null,null,"Исполнено плановых назначений итого"]
["Атрибут","НеИспПланНазн",{"$f":"Отчет!J59","v":0},null,null,null,null,null,null,"Не исполнено плановых назначений"]
["###"]
["Элемент","АрендПлатИм",null,null,null,null,null,null,null,"Арендная плата за пользование имуществом"]
["Атрибут","КодАналит",{"$f":"Отчет!C60","v":"224"},null,null,null,null,null,null,"Код аналитики"]
["Атрибут","УтвПланНазн",{"$f":"Отчет!D60","v":0},null,null,null,null,null,null,"Утверждено плановых назначений"]
["Атрибут","ИспЛицСч",{"$f":"Отчет!E60","v":0},null,null,null,null,null,null,"Исполнено плановых назначений через лицевые счета"]
["Атрибут","ИспБанкСч",{"$f":"Отчет!F60","v":0},null,null,null,null,null,null,"Исполнено плановых назначений через банковские счета"]
["Атрибут","ИспКасУчр",{"$f":"Отчет!G60","v":0},null,null,null,null,null,null,"Исполнено плановых назначений через кассу учреждения"]
["Атрибут","ИспНекасОп",{"$f":"Отчет!H60","v":0},null,null,null,null,null,null,"Исполнено плановых назначений некассовыми операциями"]
["Атрибут","ИспИтого",{"$f":"Отчет!I60","v":0},null,null,null,null,null,null,"Исполнено плановых назначений итого"]
["Атрибут","НеИспПланНазн",{"$f":"Отчет!J60","v":0},null,null,null,null,null,null,"Не исполнено плановых назначений"]
["###"]
["Элемент","РабСодержИм",null,null,null,null,null,null,null,"Работы, услуги по содержанию имущества"]
["Атрибут","КодАналит",{"$f":"Отчет!C61","v":"225"},null,null,null,null,null,null,"Код аналитики"]
["Атрибут","УтвПланНазн",{"$f":"Отчет!D61","v":0},null,null,null,null,null,null,"Утверждено плановых назначений"]
["Атрибут","ИспЛицСч",{"$f":"Отчет!E61","v":0},null,null,null,null,null,null,"Исполнено плановых назначений через лицевые счета"]
["Атрибут","ИспБанкСч",{"$f":"Отчет!F61","v":0},null,null,null,null,null,null,"Исполнено плановых назначений через банковские счета"]
["Атрибут","ИспКасУчр",{"$f":"Отчет!G61","v":0},null,null,null,null,null,null,"Исполнено плановых назначений через кассу учреждения"]
["Атрибут","ИспНекасОп",{"$f":"Отчет!H61","v":0},null,null,null,null,null,null,"Исполнено плановых назначений некассовыми операциями"]
["Атрибут","ИспИтого",{"$f":"Отчет!I61","v":0},null,null,null,null,null,null,"Исполнено плановых назначений итого"]
["Атрибут","НеИспПланНазн",{"$f":"Отчет!J61","v":0},null,null,null,null,null,null,"Не исполнено плановых назначений"]
["###"]
["Элемент","ПрочРаб",null,null,null,null,null,null,null,"Прочие работы, услуги"]
["Атрибут","КодАналит",{"$f":"Отчет!C62","v":"226"},null,null,null,null,null,null,"Код аналитики"]
["Атрибут","УтвПланНазн",{"$f":"Отчет!D62","v":38438.480000000003},null,null,null,null,null,null,"Утверждено плановых назначений"]
["Атрибут","ИспЛицСч",{"$f":"Отчет!E62","v":38438.480000000003},null,null,null,null,null,null,"Исполнено плановых назначений через лицевые счета"]
["Атрибут","ИспБанкСч",{"$f":"Отчет!F62","v":0},null,null,null,null,null,null,"Исполнено плановых назначений через банковские счета"]
["Атрибут","ИспКасУчр",{"$f":"Отчет!G62","v":0},null,null,null,null,null,null,"Исполнено плановых назначений через кассу учреждения"]
["Атрибут","ИспНекасОп",{"$f":"Отчет!H62","v":0},null,null,null,null,null,null,"Исполнено плановых назначений некассовыми операциями"]
["Атрибут","ИспИтого",{"$f":"Отчет!I62","v":38438.480000000003},null,null,null,null,null,null,"Исполнено плановых назначений итого"]
["Атрибут","НеИспПланНазн",{"$f":"Отчет!J62","v":0},null,null,null,null,null,null,"Не исполнено плановых назначений"]
["###"]
["###"]
["Элемент","ОбслДолг",null,null,null,null,null,null,null,"Обслуживание долговых обязательств"]
["Элемент","ОбслДолгВс",null,"*",null,null,null,null,null,"Обслуживание долговых обязательств всего"]
["Атрибут","КодАналит",{"$f":"Отчет!C63","v":"230"},null,null,null,null,null,null,"Код аналитики"]
["Атрибут","УтвПланНазн",{"$f":"Отчет!D63","v":0},null,null,null,null,null,null,"Утверждено плановых назначений"]
["Атрибут","ИспЛицСч",{"$f":"Отчет!E63","v":0},null,null,null,null,null,null,"Исполнено плановых назначений через лицевые счета"]
["Атрибут","ИспБанкСч",{"$f":"Отчет!F63","v":0},null,null,null,null,null,null,"Исполнено плановых назначений через банковские счета"]
["Атрибут","ИспКасУчр",{"$f":"Отчет!G63","v":0},null,null,null,null,null,null,"Исполнено плановых назначений через кассу учреждения"]
["Атрибут","ИспНекасОп",{"$f":"Отчет!H63","v":0},null,null,null,null,null,null,"Исполнено плановых назначений некассовыми операциями"]
["Атрибут","ИспИтого",{"$f":"Отчет!I63","v":0},null,null,null,null,null,null,"Исполнено плановых назначений итого"]
["Атрибут","НеИспПланНазн",{"$f":"Отчет!J63","v":0},null,null,null,null,null,null,"Не исполнено плановых назначений"]
["###"]
["Элемент","ОбслДолгРез",null,null,null,null,null,null,null,"Обслуживание долговых обязательств перед резидентами"]
["Атрибут","КодАналит",{"$f":"Отчет!C65","v":"231"},null,null,null,null,null,null,"Код аналитики"]
["Атрибут","УтвПланНазн",{"$f":"Отчет!D65","v":0},null,null,null,null,null,null,"Утверждено плановых назначений"]
["Атрибут","ИспЛицСч",{"$f":"Отчет!E65","v":0},null,null,null,null,null,null,"Исполнено плановых назначений через лицевые счета"]
["Атрибут","ИспБанкСч",{"$f":"Отчет!F65","v":0},null,null,null,null,null,null,"Исполнено плановых назначений через банковские счета"]
["Атрибут","ИспКасУчр",{"$f":"Отчет!G65","v":0},null,null,null,null,null,null,"Исполнено плановых назначений через кассу учреждения"]
["Атрибут","ИспНекасОп",{"$f":"Отчет!H65","v":0},null,null,null,null,null,null,"Исполнено плановых назначений некассовыми операциями"]
["Атрибут","ИспИтого",{"$f":"Отчет!I65","v":0},null,null,null,null,null,null,"Исполнено плановых назначений итого"]
["Атрибут","НеИспПланНазн",{"$f":"Отчет!J65","v":0},null,null,null,null,null,null,"Не исполнено плановых назначений"]
["###"]
["Элемент","ОбслДолгНеРез",null,null,null,null,null,null,null,"Обслуживание долговых обязательств перед нерезидентами"]
["Атрибут","КодАналит",{"$f":"Отчет!C66","v":"232"},null,null,null,null,null,null,"Код аналитики"]
["Атрибут","УтвПланНазн",{"$f":"Отчет!D66","v":0},null,null,null,null,null,null,"Утверждено плановых назначений"]
["Атрибут","ИспЛицСч",{"$f":"Отчет!E66","v":0},null,null,null,null,null,null,"Исполнено плановых назначений через лицевые счета"]
["Атрибут","ИспБанкСч",{"$f":"Отчет!F66","v":0},null,null,null,null,null,null,"Исполнено плановых назначений через банковские счета"]
["Атрибут","ИспКасУчр",{"$f":"Отчет!G66","v":0},null,null,null,null,null,null,"Исполнено плановых назначений через кассу учреждения"]
["Атрибут","ИспНекасОп",{"$f":"Отчет!H66","v":0},null,null,null,null,null,null,"Исполнено плановых назначений некассовыми операциями"]
["Атрибут","ИспИтого",{"$f":"Отчет!I66","v":0},null,null,null,null,null,null,"Исполнено плановых назначений итого"]
["Атрибут","НеИспПланНазн",{"$f":"Отчет!J66","v":0},null,null,null,null,null,null,"Не исполнено плановых назначений"]
["###"]
["###"]
["Элемент","ПеречОрг",null,null,null,null,null,null,null,"Безвозмездные перечисления организациям"]
["Элемент","ПеречОргВс",null,"*",null,null,null,null,null,"Безвозмездные перечисления организациям всего"]
["Атрибут","КодАналит",{"$f":"Отчет!C67","v":"240"},null,null,null,null,null,null,"Код аналитики"]
["Атрибут","УтвПланНазн",{"$f":"Отчет!D67","v":0},null,null,null,null,null,null,"Утверждено плановых назначений"]
["Атрибут","ИспЛицСч",{"$f":"Отчет!E67","v":0},null,null,null,null,null,null,"Исполнено плановых назначений через лицевые счета"]
["Атрибут","ИспБанкСч",{"$f":"Отчет!F67","v":0},null,null,null,null,null,null,"Исполнено плановых назначений через банковские счета"]
["Атрибут","ИспКасУчр",{"$f":"Отчет!G67","v":0},null,null,null,null,null,null,"Исполнено плановых назначений через кассу учреждения"]
["Атрибут","ИспНекасОп",{"$f":"Отчет!H67","v":0},null,null,null,null,null,null,"Исполнено плановых назначений некассовыми операциями"]
["Атрибут","ИспИтого",{"$f":"Отчет!I67","v":0},null,null,null,null,null,null,"Исполнено плановых назначений итого"]
["Атрибут","НеИспПланНазн",{"$f":"Отчет!J67","v":0},null,null,null,null,null,null,"Не исполнено плановых назначений"]
["###"]
["Элемент","ПеречГосОрг",null,null,null,null,null,null,null,"Безвозмездные перечисления государственным и муниципальным организациям"]
["Атрибут","КодАналит",{"$f":"Отчет!C69","v":"241"},null,null,null,null,null,null,"Код аналитики"]
["Атрибут","УтвПланНазн",{"$f":"Отчет!D69","v":0},null,null,null,null,null,null,"Утверждено плановых назначений"]
["Атрибут","ИспЛицСч",{"$f":"Отчет!E69","v":0},null,null,null,null,null,null,"Исполнено плановых назначений через лицевые счета"]
["Атрибут","ИспБанкСч",{"$f":"Отчет!F69","v":0},null,null,null,null,null,null,"Исполнено плановых назначений через банковские счета"]
["Атрибут","ИспКасУчр",{"$f":"Отчет!G69","v":0},null,null,null,null,null,null,"Исполнено плановых назначений через кассу учреждения"]
["Атрибут","ИспНекасОп",{"$f":"Отчет!H69","v":0},null,null,null,null,null,null,"Исполнено плановых назначений некассовыми операциями"]
["Атрибут","ИспИтого",{"$f":"Отчет!I69","v":0},null,null,null,null,null,null,"Исполнено плановых назначений итого"]
["Атрибут","НеИспПланНазн",{"$f":"Отчет!J69","v":0},null,null,null,null,null,null,"Не исполнено плановых назначений"]
["###"]
["Элемент","ПеречКрГосОрг",null,null,null,null,null,null,null,"Безвозмездные перечисления организациям, за исключением государственных и муниципальных организаций"]
["Атрибут","КодАналит",{"$f":"Отчет!C70","v":"242"},null,null,null,null,null,null,"Код аналитики"]
["Атрибут","УтвПланНазн",{"$f":"Отчет!D70","v":0},null,null,null,null,null,null,"Утверждено плановых назначений"]
["Атрибут","ИспЛицСч",{"$f":"Отчет!E70","v":0},null,null,null,null,null,null,"Исполнено плановых назначений через лицевые счета"]
["Атрибут","ИспБанкСч",{"$f":"Отчет!F70","v":0},null,null,null,null,null,null,"Исполнено плановых назначений через банковские счета"]
["Атрибут","ИспКасУчр",{"$f":"Отчет!G70","v":0},null,null,null,null,null,null,"Исполнено плановых назначений через кассу учреждения"]
["Атрибут","ИспНекасОп",{"$f":"Отчет!H70","v":0},null,null,null,null,null,null,"Исполнено плановых назначений некассовыми операциями"]
["Атрибут","ИспИтого",{"$f":"Отчет!I70","v":0},null,null,null,null,null,null,"Исполнено плановых назначений итого"]
["Атрибут","НеИспПланНазн",{"$f":"Отчет!J70","v":0},null,null,null,null,null,null,"Не исполнено плановых назначений"]
["###"]
["###"]
["Элемент","ПеречБюдж",null,null,null,null,null,null,null,"Безвозмездные перечисления бюджетам"]
["Элемент","ПеречБюджВс",null,"*",null,null,null,null,null,"Безвозмездные перечисления бюджетам всего"]
["Атрибут","КодАналит",{"$f":"Отчет!C76","v":"250"},null,null,null,null,null,null,"Код аналитики"]
["Атрибут","УтвПланНазн",{"$f":"Отчет!D76","v":0},null,null,null,null,null,null,"Утверждено плановых назначений"]
["Атрибут","ИспЛицСч",{"$f":"Отчет!E76","v":0},null,null,null,null,null,null,"Исполнено плановых назначений через лицевые счета"]
["Атрибут","ИспБанкСч",{"$f":"Отчет!F76","v":0},null,null,null,null,null,null,"Исполнено плановых назначений через банковские счета"]
["Атрибут","ИспКасУчр",{"$f":"Отчет!G76","v":0},null,null,null,null,null,null,"Исполнено плановых назначений через кассу учреждения"]
["Атрибут","ИспНекасОп",{"$f":"Отчет!H76","v":0},null,null,null,null,null,null,"Исполнено плановых назначений некассовыми операциями"]
["Атрибут","ИспИтого",{"$f":"Отчет!I76","v":0},null,null,null,null,null,null,"Исполнено плановых назначений итого"]
["Атрибут","НеИспПланНазн",{"$f":"Отчет!J76","v":0},null,null,null,null,null,null,"Не исполнено плановых назначений"]
["###"]
["Элемент","ПеречИно",null,null,null,null,null,null,null,"Перечисления наднациональным организациям и правительствам иностранных государств"]
["Атрибут","КодАналит",{"$f":"Отчет!C78","v":"252"},null,null,null,null,null,null,"Код аналитики"]
["Атрибут","УтвПланНазн",{"$f":"Отчет!D78","v":0},null,null,null,null,null,null,"Утверждено плановых назначений"]
["Атрибут","ИспЛицСч",{"$f":"Отчет!E78","v":0},null,null,null,null,null,null,"Исполнено плановых назначений через лицевые счета"]
["Атрибут","ИспБанкСч",{"$f":"Отчет!F78","v":0},null,null,null,null,null,null,"Исполнено плановых назначений через банковские счета"]
["Атрибут","ИспКасУчр",{"$f":"Отчет!G78","v":0},null,null,null,null,null,null,"Исполнено плановых назначений через кассу учреждения"]
["Атрибут","ИспНекасОп",{"$f":"Отчет!H78","v":0},null,null,null,null,null,null,"Исполнено плановых назначений некассовыми операциями"]
["Атрибут","ИспИтого",{"$f":"Отчет!I78","v":0},null,null,null,null,null,null,"Исполнено плановых назначений итого"]
["Атрибут","НеИспПланНазн",{"$f":"Отчет!J78","v":0},null,null,null,null,null,null,"Не исполнено плановых назначений"]
["###"]
["Элемент","ПеречМО",null,null,null,null,null,null,null,"Перечисления международным организациям"]
["Атрибут","КодАналит",{"$f":"Отчет!C79","v":"253"},null,null,null,null,null,null,"Код аналитики"]
["Атрибут","УтвПланНазн",{"$f":"Отчет!D79","v":0},null,null,null,null,null,null,"Утверждено плановых назначений"]
["Атрибут","ИспЛицСч",{"$f":"Отчет!E79","v":0},null,null,null,null,null,null,"Исполнено плановых назначений через лицевые счета"]
["Атрибут","ИспБанкСч",{"$f":"Отчет!F79","v":0},null,null,null,null,null,null,"Исполнено плановых назначений через банковские счета"]
["Атрибут","ИспКасУчр",{"$f":"Отчет!G79","v":0},null,null,null,null,null,null,"Исполнено плановых назначений через кассу учреждения"]
["Атрибут","ИспНекасОп",{"$f":"Отчет!H79","v":0},null,null,null,null,null,null,"Исполнено плановых назначений некассовыми операциями"]
["Атрибут","ИспИтого",{"$f":"Отчет!I79","v":0},null,null,null,null,null,null,"Исполнено плановых назначений итого"]
["Атрибут","НеИспПланНазн",{"$f":"Отчет!J79","v":0},null,null,null,null,null,null,"Не исполнено плановых назначений"]
["###"]
["###"]
["Элемент","СоцОбесп",null,null,null,null,null,null,null,"Социальное обеспечение"]
["Элемент","СоцОбеспВс",null,"*",null,null,null,null,null,"Социальное обеспечение всего"]
["Атрибут","КодАналит",{"$f":"Отчет!C80","v":"260"},null,null,null,null,null,null,"Код аналитики"]
["Атрибут","УтвПланНазн",{"$f":"Отчет!D80","v":0},null,null,null,null,null,null,"Утверждено плановых назначений"]
["Атрибут","ИспЛицСч",{"$f":"Отчет!E80","v":0},null,null,null,null,null,null,"Исполнено плановых назначений через лицевые счета"]
["Атрибут","ИспБанкСч",{"$f":"Отчет!F80","v":0},null,null,null,null,null,null,"Исполнено плановых назначений через банковские счета"]
["Атрибут","ИспКасУчр",{"$f":"Отчет!G80","v":0},null,null,null,null,null,null,"Исполнено плановых назначений через кассу учреждения"]
["Атрибут","ИспНекасОп",{"$f":"Отчет!H80","v":0},null,null,null,null,null,null,"Исполнено плановых назначений некассовыми операциями"]
["Атрибут","ИспИтого",{"$f":"Отчет!I80","v":0},null,null,null,null,null,null,"Исполнено плановых назначений итого"]
["Атрибут","НеИспПланНазн",{"$f":"Отчет!J80","v":0},null,null,null,null,null,null,"Не исполнено плановых назначений"]
["###"]
["Элемент","ПомНасел",null,null,null,null,null,null,null,"Пособия по социальной помощи населению"]
["Атрибут","КодАналит",{"$f":"Отчет!C82","v":"262"},null,null,null,null,null,null,"Код аналитики"]
["Атрибут","УтвПланНазн",{"$f":"Отчет!D82","v":0},null,null,null,null,null,null,"Утверждено плановых назначений"]
["Атрибут","ИспЛицСч",{"$f":"Отчет!E82","v":0},null,null,null,null,null,null,"Исполнено плановых назначений через лицевые счета"]
["Атрибут","ИспБанкСч",{"$f":"Отчет!F82","v":0},null,null,null,null,null,null,"Исполнено плановых назначений через банковские счета"]
["Атрибут","ИспКасУчр",{"$f":"Отчет!G82","v":0},null,null,null,null,null,null,"Исполнено плановых назначений через кассу учреждения"]
["Атрибут","ИспНекасОп",{"$f":"Отчет!H82","v":0},null,null,null,null,null,null,"Исполнено плановых назначений некассовыми операциями"]
["Атрибут","ИспИтого",{"$f":"Отчет!I82","v":0},null,null,null,null,null,null,"Исполнено плановых назначений итого"]
["Атрибут","НеИспПланНазн",{"$f":"Отчет!J82","v":0},null,null,null,null,null,null,"Не исполнено плановых назначений"]
["###"]
["Элемент","ПособГосУпр",null,null,null,null,null,null,null,"Пенсии, пособия, выплачиваемые организациями сектора государственного управления"]
["Атрибут","КодАналит",{"$f":"Отчет!C83","v":"263"},null,null,null,null,null,null,"Код аналитики"]
["Атрибут","УтвПланНазн",{"$f":"Отчет!D83","v":0},null,null,null,null,null,null,"Утверждено плановых назначений"]
["Атрибут","ИспЛицСч",{"$f":"Отчет!E83","v":0},null,null,null,null,null,null,"Исполнено плановых назначений через лицевые счета"]
["Атрибут","ИспБанкСч",{"$f":"Отчет!F83","v":0},null,null,null,null,null,null,"Исполнено плановых назначений через банковские счета"]
["Атрибут","ИспКасУчр",{"$f":"Отчет!G83","v":0},null,null,null,null,null,null,"Исполнено плановых назначений через кассу учреждения"]
["Атрибут","ИспНекасОп",{"$f":"Отчет!H83","v":0},null,null,null,null,null,null,"Исполнено плановых назначений некассовыми операциями"]
["Атрибут","ИспИтого",{"$f":"Отчет!I83","v":0},null,null,null,null,null,null,"Исполнено плановых назначений итого"]
["Атрибут","НеИспПланНазн",{"$f":"Отчет!J83","v":0},null,null,null,null,null,null,"Не исполнено плановых назначений"]
["###"]
["###"]
["Элемент","РасхПроч",null,null,null,null,null,null,null,"Прочие расходы"]
["Атрибут","КодАналит",{"$f":"Отчет!C84","v":"290"},null,null,null,null,null,null,"Код аналитики"]
["Атрибут","УтвПланНазн",{"$f":"Отчет!D84","v":8173},null,null,null,null,null,null,"Утверждено плановых назначений"]
["Атрибут","ИспЛицСч",{"$f":"Отчет!E84","v":8173},null,null,null,null,null,null,"Исполнено плановых назначений через лицевые счета"]
["Атрибут","ИспБанкСч",{"$f":"Отчет!F84","v":0},null,null,null,null,null,null,"Исполнено плановых назначений через банковские счета"]
["Атрибут","ИспКасУчр",{"$f":"Отчет!G84","v":0},null,null,null,null,null,null,"Исполнено плановых назначений через кассу учреждения"]
["Атрибут","ИспНекасОп",{"$f":"Отчет!H84","v":0},null,null,null,null,null,null,"Исполнено плановых назначений некассовыми операциями"]
["Атрибут","ИспИтого",{"$f":"Отчет!I84","v":8173},null,null,null,null,null,null,"Исполнено плановых назначений итого"]
["Атрибут","НеИспПланНазн",{"$f":"Отчет!J84","v":0},null,null,null,null,null,null,"Не исполнено плановых назначений"]
["###"]
["Элемент","ПриобрНФА",null,null,null,null,null,null,null,"Расходы по приобретению нефинансовых активов"]
["Элемент","ПриобрНФАВс",null,"*",null,null,null,null,null,"Расходы по приобретению нефинансовых активов всего"]
["Атрибут","КодАналит",{"$f":"Отчет!C85","v":"300"},null,null,null,null,null,null,"Код аналитики"]
["Атрибут","УтвПланНазн",{"$f":"Отчет!D85","v":1527905.31},null,null,null,null,null,null,"Утверждено плановых назначений"]
["Атрибут","ИспЛицСч",{"$f":"Отчет!E85","v":1378360.3},null,null,null,null,null,null,"Исполнено плановых назначений через лицевые счета"]
["Атрибут","ИспБанкСч",{"$f":"Отчет!F85","v":0},null,null,null,null,null,null,"Исполнено плановых назначений через банковские счета"]
["Атрибут","ИспКасУчр",{"$f":"Отчет!G85","v":0},null,null,null,null,null,null,"Исполнено плановых назначений через кассу учреждения"]
["Атрибут","ИспНекасОп",{"$f":"Отчет!H85","v":0},null,null,null,null,null,null,"Исполнено плановых назначений некассовыми операциями"]
["Атрибут","ИспИтого",{"$f":"Отчет!I85","v":1378360.3},null,null,null,null,null,null,"Исполнено плановых назначений итого"]
["Атрибут","НеИспПланНазн",{"$f":"Отчет!J85","v":149545.01},null,null,null,null,null,null,"Не исполнено плановых назначений"]
["###"]
["Элемент","ПриобрОС",null,null,null,null,null,null,null,"Расходы по приобретению основных средств"]
["Атрибут","КодАналит",{"$f":"Отчет!C87","v":"310"},null,null,null,null,null,null,"Код аналитики"]
["Атрибут","УтвПланНазн",{"$f":"Отчет!D87","v":4650},null,null,null,null,null,null,"Утверждено плановых назначений"]
["Атрибут","ИспЛицСч",{"$f":"Отчет!E87","v":4650},null,null,null,null,null,null,"Исполнено плановых назначений через лицевые счета"]
["Атрибут","ИспБанкСч",{"$f":"Отчет!F87","v":0},null,null,null,null,null,null,"Исполнено плановых назначений через банковские счета"]
["Атрибут","ИспКасУчр",{"$f":"Отчет!G87","v":0},null,null,null,null,null,null,"Исполнено плановых назначений через кассу учреждения"]
["Атрибут","ИспНекасОп",{"$f":"Отчет!H87","v":0},null,null,null,null,null,null,"Исполнено плановых назначений некассовыми операциями"]
["Атрибут","ИспИтого",{"$f":"Отчет!I87","v":4650},null,null,null,null,null,null,"Исполнено плановых назначений итого"]
["Атрибут","НеИспПланНазн",{"$f":"Отчет!J87","v":0},null,null,null,null,null,null,"Не исполнено плановых назначений"]
["###"]
["Элемент","ПриобрНМА",null,null,null,null,null,null,null,"Расходы по приобретению нематериальных активов"]
["Атрибут","КодАналит",{"$f":"Отчет!C88","v":"320"},null,null,null,null,null,null,"Код аналитики"]
["Атрибут","УтвПланНазн",{"$f":"Отчет!D88","v":0},null,null,null,null,null,null,"Утверждено плановых назначений"]
["Атрибут","ИспЛицСч",{"$f":"Отчет!E88","v":0},null,null,null,null,null,null,"Исполнено плановых назначений через лицевые счета"]
["Атрибут","ИспБанкСч",{"$f":"Отчет!F88","v":0},null,null,null,null,null,null,"Исполнено плановых назначений через банковские счета"]
["Атрибут","ИспКасУчр",{"$f":"Отчет!G88","v":0},null,null,null,null,null,null,"Исполнено плановых назначений через кассу учреждения"]
["Атрибут","ИспНекасОп",{"$f":"Отчет!H88","v":0},null,null,null,null,null,null,"Исполнено плановых назначений некассовыми операциями"]
["Атрибут","ИспИтого",{"$f":"Отчет!I88","v":0},null,null,null,null,null,null,"Исполнено плановых назначений итого"]
["Атрибут","НеИспПланНазн",{"$f":"Отчет!J88","v":0},null,null,null,null,null,null,"Не исполнено плановых назначений"]
["###"]
["Элемент","ПриобрНПрА",null,null,null,null,null,null,null,"Расходы по приобретению непроизведенных активов"]
["Атрибут","КодАналит",{"$f":"Отчет!C89","v":"330"},null,null,null,null,null,null,"Код аналитики"]
["Атрибут","УтвПланНазн",{"$f":"Отчет!D89","v":0},null,null,null,null,null,null,"Утверждено плановых назначений"]
["Атрибут","ИспЛицСч",{"$f":"Отчет!E89","v":0},null,null,null,null,null,null,"Исполнено плановых назначений через лицевые счета"]
["Атрибут","ИспБанкСч",{"$f":"Отчет!F89","v":0},null,null,null,null,null,null,"Исполнено плановых назначений через банковские счета"]
["Атрибут","ИспКасУчр",{"$f":"Отчет!G89","v":0},null,null,null,null,null,null,"Исполнено плановых назначений через кассу учреждения"]
["Атрибут","ИспНекасОп",{"$f":"Отчет!H89","v":0},null,null,null,null,null,null,"Исполнено плановых назначений некассовыми операциями"]
["Атрибут","ИспИтого",{"$f":"Отчет!I89","v":0},null,null,null,null,null,null,"Исполнено плановых назначений итого"]
["Атрибут","НеИспПланНазн",{"$f":"Отчет!J89","v":0},null,null,null,null,null,null,"Не исполнено плановых назначений"]
["###"]
["Элемент","ПриобрМатЗ",null,null,null,null,null,null,null,"Расходы по приобретению материальных запасов"]
["Атрибут","КодАналит",{"$f":"Отчет!C90","v":"340"},null,null,null,null,null,null,"Код аналитики"]
["Атрибут","УтвПланНазн",{"$f":"Отчет!D90","v":1523255.31},null,null,null,null,null,null,"Утверждено плановых назначений"]
["Атрибут","ИспЛицСч",{"$f":"Отчет!E90","v":1373710.3},null,null,null,null,null,null,"Исполнено плановых назначений через лицевые счета"]
["Атрибут","ИспБанкСч",{"$f":"Отчет!F90","v":0},null,null,null,null,null,null,"Исполнено плановых назначений через банковские счета"]
["Атрибут","ИспКасУчр",{"$f":"Отчет!G90","v":0},null,null,null,null,null,null,"Исполнено плановых назначений через кассу учреждения"]
["Атрибут","ИспНекасОп",{"$f":"Отчет!H90","v":0},null,null,null,null,null,null,"Исполнено плановых назначений некассовыми операциями"]
["Атрибут","ИспИтого",{"$f":"Отчет!I90","v":1373710.3},null,null,null,null,null,null,"Исполнено плановых назначений итого"]
["Атрибут","НеИспПланНазн",{"$f":"Отчет!J90","v":149545.01},null,null,null,null,null,null,"Не исполнено плановых назначений"]
["###"]
["###"]
["Элемент","ПриобрФА",null,null,null,null,null,null,null,"Расходы по приобретению финансовых активов"]
["Элемент","ПриобрФАВс",null,"*",null,null,null,null,null,"Расходы по приобретению финансовых активов всего"]
["Атрибут","КодАналит",{"$f":"Отчет!C91","v":"500"},null,null,null,null,null,null,"Код аналитики"]
["Атрибут","УтвПланНазн",{"$f":"Отчет!D91","v":0},null,null,null,null,null,null,"Утверждено плановых назначений"]
["Атрибут","ИспЛицСч",{"$f":"Отчет!E91","v":0},null,null,null,null,null,null,"Исполнено плановых назначений через лицевые счета"]
["Атрибут","ИспБанкСч",{"$f":"Отчет!F91","v":0},null,null,null,null,null,null,"Исполнено плановых назначений через банковские счета"]
["Атрибут","ИспКасУчр",{"$f":"Отчет!G91","v":0},null,null,null,null,null,null,"Исполнено плановых назначений через кассу учреждения"]
["Атрибут","ИспНекасОп",{"$f":"Отчет!H91","v":0},null,null,null,null,null,null,"Исполнено плановых назначений некассовыми операциями"]
["Атрибут","ИспИтого",{"$f":"Отчет!I91","v":0},null,null,null,null,null,null,"Исполнено плановых назначений итого"]
["Атрибут","НеИспПланНазн",{"$f":"Отчет!J91","v":0},null,null,null,null,null,null,"Не исполнено плановых назначений"]
["###"]
["Элемент","ПриобрЦБ",null,null,null,null,null,null,null,"Расходы по приобретению ценных бумаг, кроме акций"]
["Атрибут","КодАналит",{"$f":"Отчет!C93","v":"520"},null,null,null,null,null,null,"Код аналитики"]
["Атрибут","УтвПланНазн",{"$f":"Отчет!D93","v":0},null,null,null,null,null,null,"Утверждено плановых назначений"]
["Атрибут","ИспЛицСч",{"$f":"Отчет!E93","v":0},null,null,null,null,null,null,"Исполнено плановых назначений через лицевые счета"]
["Атрибут","ИспБанкСч",{"$f":"Отчет!F93","v":0},null,null,null,null,null,null,"Исполнено плановых назначений через банковские счета"]
["Атрибут","ИспКасУчр",{"$f":"Отчет!G93","v":0},null,null,null,null,null,null,"Исполнено плановых назначений через кассу учреждения"]
["Атрибут","ИспНекасОп",{"$f":"Отчет!H93","v":0},null,null,null,null,null,null,"Исполнено плановых назначений некассовыми операциями"]
["Атрибут","ИспИтого",{"$f":"Отчет!I93","v":0},null,null,null,null,null,null,"Исполнено плановых назначений итого"]
["Атрибут","НеИспПланНазн",{"$f":"Отчет!J93","v":0},null,null,null,null,null,null,"Не исполнено плановых назначений"]
["###"]
["Элемент","ПриобрАкц",null,null,null,null,null,null,null,"Расходы по приобретению акций и иных форм участия в капитале"]
["Атрибут","КодАналит",{"$f":"Отчет!C94","v":"530"},null,null,null,null,null,null,"Код аналитики"]
["Атрибут","УтвПланНазн",{"$f":"Отчет!D94","v":0},null,null,null,null,null,null,"Утверждено плановых назначений"]
["Атрибут","ИспЛицСч",{"$f":"Отчет!E94","v":0},null,null,null,null,null,null,"Исполнено плановых назначений через лицевые счета"]
["Атрибут","ИспБанкСч",{"$f":"Отчет!F94","v":0},null,null,null,null,null,null,"Исполнено плановых назначений через банковские счета"]
["Атрибут","ИспКасУчр",{"$f":"Отчет!G94","v":0},null,null,null,null,null,null,"Исполнено плановых назначений через кассу учреждения"]
["Атрибут","ИспНекасОп",{"$f":"Отчет!H94","v":0},null,null,null,null,null,null,"Исполнено плановых назначений некассовыми операциями"]
["Атрибут","ИспИтого",{"$f":"Отчет!I94","v":0},null,null,null,null,null,null,"Исполнено плановых назначений итого"]
["Атрибут","НеИспПланНазн",{"$f":"Отчет!J94","v":0},null,null,null,null,null,null,"Не исполнено плановых назначений"]
["###"]
["Элемент","ПриобрИнФА",null,null,null,null,null,null,null,"Расходы по приобретению иных финансовых активов"]
["Атрибут","КодАналит",{"$f":"Отчет!C95","v":"550"},null,null,null,null,null,null,"Код аналитики"]
["Атрибут","УтвПланНазн",{"$f":"Отчет!D95","v":0},null,null,null,null,null,null,"Утверждено плановых назначений"]
["Атрибут","ИспЛицСч",{"$f":"Отчет!E95","v":0},null,null,null,null,null,null,"Исполнено плановых назначений через лицевые счета"]
["Атрибут","ИспБанкСч",{"$f":"Отчет!F95","v":0},null,null,null,null,null,null,"Исполнено плановых назначений через банковские счета"]
["Атрибут","ИспКасУчр",{"$f":"Отчет!G95","v":0},null,null,null,null,null,null,"Исполнено плановых назначений через кассу учреждения"]
["Атрибут","ИспНекасОп",{"$f":"Отчет!H95","v":0},null,null,null,null,null,null,"Исполнено плановых назначений некассовыми операциями"]
["Атрибут","ИспИтого",{"$f":"Отчет!I95","v":0},null,null,null,null,null,null,"Исполнено плановых назначений итого"]
["Атрибут","НеИспПланНазн",{"$f":"Отчет!J95","v":0},null,null,null,null,null,null,"Не исполнено плановых назначений"]
["###"]
["###"]
["###",null,null,null,null,null,null,null,null,"РАСХОДЫ!"]
["Элемент","РезИсполн",null,null,null,null,null,null,null,"Результат исполнения (дефицит/профицит)"]
["Атрибут","УтвПланНазн",{"$f":"Отчет!D98","v":-69162.11},null,null,null,null,null,null,"Утверждено плановых назначений"]
["Атрибут","ИспЛицСч",{"$f":"Отчет!E98","v":80382.899999999994},null,null,null,null,null,null,"Исполнено плановых назначений через лицевые счета"]
["Атрибут","ИспБанкСч",{"$f":"Отчет!F98","v":0},null,null,null,null,null,null,"Исполнено плановых назначений через банковские счета"]
["Атрибут","ИспКасУчр",{"$f":"Отчет!G98","v":0},null,null,null,null,null,null,"Исполнено плановых назначений через кассу учреждения"]
["Атрибут","ИспНекасОп",{"$f":"Отчет!H98","v":0},null,null,null,null,null,null,"Исполнено плановых назначений некассовыми операциями"]
["Атрибут","ИспИтого",{"$f":"Отчет!I98","v":80382.899999999994},null,null,null,null,null,null,"Исполнено плановых назначений итого"]
["###",null,null,null,null,null,null,null,null,"РезИсполн!"]
["Элемент","ИстФинанс",null,null,null,null,null,null,null,"Источники финансирования дефицита средств учреждения"]
["Элемент","ИстФинансВс",null,"*",null,null,null,null,null,"Источники финансирования дефицита средств - всего"]
["Атрибут","КодАналит",{"$f":"Отчет!C105","v":0},null,null,null,null,null,null,"Код аналитики"]
["Атрибут","УтвПланНазн",{"$f":"Отчет!D105","v":69162.11},null,null,null,null,null,null,"Утверждено плановых назначений"]
["Атрибут","ИспЛицСч",{"$f":"Отчет!E105","v":-80382.899999999994},null,null,null,null,null,null,"Исполнено плановых назначений через лицевые счета"]
["Атрибут","ИспБанкСч",{"$f":"Отчет!F105","v":0},null,null,null,null,null,null,"Исполнено плановых назначений через банковские счета"]
["Атрибут","ИспКасУчр",{"$f":"Отчет!G105","v":0},null,null,null,null,null,null,"Исполнено плановых назначений через кассу учреждения"]
["Атрибут","ИспНекасОп",{"$f":"Отчет!H105","v":0},null,null,null,null,null,null,"Исполнено плановых назначений некассовыми операциями"]
["Атрибут","ИспИтого",{"$f":"Отчет!I105","v":-80382.899999999994},null,null,null,null,null,null,"Исполнено плановых назначений итого"]
["Атрибут","НеИспПланНазн",{"$f":"Отчет!J105","v":149545.01},null,null,null,null,null,null,"Не исполнено плановых назначений"]
["###"]
["Элемент","ВнутрИст",null,null,null,null,null,null,null,"Внутренние источники"]
["Элемент","ВнутрИстВс",null,"*",null,null,null,null,null,"Внутренние источники всего"]
["Атрибут","КодАналит",{"$f":"Отчет!C107","v":0},null,null,null,null,null,null,"Код аналитики"]
["Атрибут","УтвПланНазн",{"$f":"Отчет!D107","v":0},null,null,null,null,null,null,"Утверждено плановых назначений"]
["Атрибут","ИспЛицСч",{"$f":"Отчет!E107","v":0},null,null,null,null,null,null,"Исполнено плановых назначений через лицевые счета"]
["Атрибут","ИспБанкСч",{"$f":"Отчет!F107","v":0},null,null,null,null,null,null,"Исполнено плановых назначений через банковские счета"]
["Атрибут","ИспКасУчр",{"$f":"Отчет!G107","v":0},null,null,null,null,null,null,"Исполнено плановых назначений через кассу учреждения"]
["Атрибут","ИспНекасОп",{"$f":"Отчет!H107","v":0},null,null,null,null,null,null,"Исполнено плановых назначений некассовыми операциями"]
["Атрибут","ИспИтого",{"$f":"Отчет!I107","v":0},null,null,null,null,null,null,"Исполнено плановых назначений итого"]
["Атрибут","НеИспПланНазн",{"$f":"Отчет!J107","v":0},null,null,null,null,null,null,"Не исполнено плановых назначений"]
["###"]
["Элемент","КурсРазн",null,null,null,null,null,null,null,"Курсовая разница"]
["Атрибут","КодАналит",{"$f":"Отчет!C109","v":"171"},null,null,null,null,null,null,"Код аналитики"]
["Атрибут","УтвПланНазн",{"$f":"Отчет!D109","v":0},null,null,null,null,null,null,"Утверждено плановых назначений"]
["Атрибут","ИспЛицСч",{"$f":"Отчет!E109","v":0},null,null,null,null,null,null,"Исполнено плановых назначений через лицевые счета"]
["Атрибут","ИспБанкСч",{"$f":"Отчет!F109","v":0},null,null,null,null,null,null,"Исполнено плановых назначений через банковские счета"]
["Атрибут","ИспКасУчр",{"$f":"Отчет!G109","v":0},null,null,null,null,null,null,"Исполнено плановых назначений через кассу учреждения"]
["Атрибут","ИспНекасОп",{"$f":"Отчет!H109","v":0},null,null,null,null,null,null,"Исполнено плановых назначений некассовыми операциями"]
["Атрибут","ИспИтого",{"$f":"Отчет!I109","v":0},null,null,null,null,null,null,"Исполнено плановых назначений итого"]
["Атрибут","НеИспПланНазн",{"$f":"Отчет!J109","v":0},null,null,null,null,null,null,"Не исполнено плановых назначений"]
["###"]
["Элемент","ПостЗайм",null,null,null,null,null,null,null,"Поступления от погашения займов (ссуд)"]
["Атрибут","КодАналит",{"$f":"Отчет!C110","v":"640"},null,null,null,null,null,null,"Код аналитики"]
["Атрибут","УтвПланНазн",{"$f":"Отчет!D110","v":0},null,null,null,null,null,null,"Утверждено плановых назначений"]
["Атрибут","ИспЛицСч",{"$f":"Отчет!E110","v":0},null,null,null,null,null,null,"Исполнено плановых назначений через лицевые счета"]
["Атрибут","ИспБанкСч",{"$f":"Отчет!F110","v":0},null,null,null,null,null,null,"Исполнено плановых назначений через банковские счета"]
["Атрибут","ИспКасУчр",{"$f":"Отчет!G110","v":0},null,null,null,null,null,null,"Исполнено плановых назначений через кассу учреждения"]
["Атрибут","ИспНекасОп",{"$f":"Отчет!H110","v":0},null,null,null,null,null,null,"Исполнено плановых назначений некассовыми операциями"]
["Атрибут","ИспИтого",{"$f":"Отчет!I110","v":0},null,null,null,null,null,null,"Исполнено плановых назначений итого"]
["Атрибут","НеИспПланНазн",{"$f":"Отчет!J110","v":0},null,null,null,null,null,null,"Не исполнено плановых назначений"]
["###"]
["Элемент","ВыплЗайм",null,null,null,null,null,null,null,"Выплаты по предоставлению займов (ссуд)"]
["Атрибут","КодАналит",{"$f":"Отчет!C111","v":"540"},null,null,null,null,null,null,"Код аналитики"]
["Атрибут","УтвПланНазн",{"$f":"Отчет!D111","v":0},null,null,null,null,null,null,"Утверждено плановых назначений"]
["Атрибут","ИспЛицСч",{"$f":"Отчет!E111","v":0},null,null,null,null,null,null,"Исполнено плановых назначений через лицевые счета"]
["Атрибут","ИспБанкСч",{"$f":"Отчет!F111","v":0},null,null,null,null,null,null,"Исполнено плановых назначений через банковские счета"]
["Атрибут","ИспКасУчр",{"$f":"Отчет!G111","v":0},null,null,null,null,null,null,"Исполнено плановых назначений через кассу учреждения"]
["Атрибут","ИспНекасОп",{"$f":"Отчет!H111","v":0},null,null,null,null,null,null,"Исполнено плановых назначений некассовыми операциями"]
["Атрибут","ИспИтого",{"$f":"Отчет!I111","v":0},null,null,null,null,null,null,"Исполнено плановых назначений итого"]
["Атрибут","НеИспПланНазн",{"$f":"Отчет!J111","v":0},null,null,null,null,null,null,"Не исполнено плановых назначений"]
["###"]
["Элемент","ПостРез",null,null,null,null,null,null,null,"Поступления заимствований от резидентов"]
["Атрибут","КодАналит",{"$f":"Отчет!C112","v":"710"},null,null,null,null,null,null,"Код аналитики"]
["Атрибут","УтвПланНазн",{"$f":"Отчет!D112","v":0},null,null,null,null,null,null,"Утверждено плановых назначений"]
["Атрибут","ИспЛицСч",{"$f":"Отчет!E112","v":0},null,null,null,null,null,null,"Исполнено плановых назначений через лицевые счета"]
["Атрибут","ИспБанкСч",{"$f":"Отчет!F112","v":0},null,null,null,null,null,null,"Исполнено плановых назначений через банковские счета"]
["Атрибут","ИспКасУчр",{"$f":"Отчет!G112","v":0},null,null,null,null,null,null,"Исполнено плановых назначений через кассу учреждения"]
["Атрибут","ИспНекасОп",{"$f":"Отчет!H112","v":0},null,null,null,null,null,null,"Исполнено плановых назначений некассовыми операциями"]
["Атрибут","ИспИтого",{"$f":"Отчет!I112","v":0},null,null,null,null,null,null,"Исполнено плановых назначений итого"]
["Атрибут","НеИспПланНазн",{"$f":"Отчет!J112","v":0},null,null,null,null,null,null,"Не исполнено плановых назначений"]
["###"]
["Элемент","ПогашРез",null,null,null,null,null,null,null,"Погашение заимствований от резидентов"]
["Атрибут","КодАналит",{"$f":"Отчет!C113","v":"810"},null,null,null,null,null,null,"Код аналитики"]
["Атрибут","УтвПланНазн",{"$f":"Отчет!D113","v":0},null,null,null,null,null,null,"Утверждено плановых назначений"]
["Атрибут","ИспЛицСч",{"$f":"Отчет!E113","v":0},null,null,null,null,null,null,"Исполнено плановых назначений через лицевые счета"]
["Атрибут","ИспБанкСч",{"$f":"Отчет!F113","v":0},null,null,null,null,null,null,"Исполнено плановых назначений через банковские счета"]
["Атрибут","ИспКасУчр",{"$f":"Отчет!G113","v":0},null,null,null,null,null,null,"Исполнено плановых назначений через кассу учреждения"]
["Атрибут","ИспНекасОп",{"$f":"Отчет!H113","v":0},null,null,null,null,null,null,"Исполнено плановых назначений некассовыми операциями"]
["Атрибут","ИспИтого",{"$f":"Отчет!I113","v":0},null,null,null,null,null,null,"Исполнено плановых назначений итого"]
["Атрибут","НеИспПланНазн",{"$f":"Отчет!J113","v":0},null,null,null,null,null,null,"Не исполнено плановых назначений"]
["###"]
["###"]
["Элемент","ВнешнИст",null,null,null,null,null,null,null,"Внешние источники"]
["Элемент","ВнешнИстВс",null,"*",null,null,null,null,null,"Внешние источники, всего"]
["Атрибут","КодАналит",{"$f":"Отчет!C114","v":0},null,null,null,null,null,null,"Код аналитики"]
["Атрибут","УтвПланНазн",{"$f":"Отчет!D114","v":0},null,null,null,null,null,null,"Утверждено плановых назначений"]
["Атрибут","ИспЛицСч",{"$f":"Отчет!E114","v":0},null,null,null,null,null,null,"Исполнено плановых назначений через лицевые счета"]
["Атрибут","ИспБанкСч",{"$f":"Отчет!F114","v":0},null,null,null,null,null,null,"Исполнено плановых назначений через банковские счета"]
["Атрибут","ИспКасУчр",{"$f":"Отчет!G114","v":0},null,null,null,null,null,null,"Исполнено плановых назначений через кассу учреждения"]
["Атрибут","ИспНекасОп",{"$f":"Отчет!H114","v":0},null,null,null,null,null,null,"Исполнено плановых назначений некассовыми операциями"]
["Атрибут","ИспИтого",{"$f":"Отчет!I114","v":0},null,null,null,null,null,null,"Исполнено плановых назначений итого"]
["Атрибут","НеИспПланНазн",{"$f":"Отчет!J114","v":0},null,null,null,null,null,null,"Не исполнено плановых назначений"]
["###"]
["Элемент","КурсРазн",null,null,null,null,null,null,null,"Курсовая разница"]
["Атрибут","КодАналит",{"$f":"Отчет!C116","v":"171"},null,null,null,null,null,null,"Код аналитики"]
["Атрибут","УтвПланНазн",{"$f":"Отчет!D116","v":0},null,null,null,null,null,null,"Утверждено плановых назначений"]
["Атрибут","ИспЛицСч",{"$f":"Отчет!E116","v":0},null,null,null,null,null,null,"Исполнено плановых назначений через лицевые счета"]
["Атрибут","ИспБанкСч",{"$f":"Отчет!F116","v":0},null,null,null,null,null,null,"Исполнено плановых назначений через банковские счета"]
["Атрибут","ИспКасУчр",{"$f":"Отчет!G116","v":0},null,null,null,null,null,null,"Исполнено плановых назначений через кассу учреждения"]
["Атрибут","ИспНекасОп",{"$f":"Отчет!H116","v":0},null,null,null,null,null,null,"Исполнено плановых назначений некассовыми операциями"]
["Атрибут","ИспИтого",{"$f":"Отчет!I116","v":0},null,null,null,null,null,null,"Исполнено плановых назначений итого"]
["Атрибут","НеИспПланНазн",{"$f":"Отчет!J116","v":0},null,null,null,null,null,null,"Не исполнено плановых назначений"]
["###"]
["Элемент","ПостРез",null,null,null,null,null,null,null,"Поступления заимствований от резидентов"]
["Атрибут","КодАналит",{"$f":"Отчет!C117","v":"720"},null,null,null,null,null,null,"Код аналитики"]
["Атрибут","УтвПланНазн",{"$f":"Отчет!D117","v":0},null,null,null,null,null,null,"Утверждено плановых назначений"]
["Атрибут","ИспЛицСч",{"$f":"Отчет!E117","v":0},null,null,null,null,null,null,"Исполнено плановых назначений через лицевые счета"]
["Атрибут","ИспБанкСч",{"$f":"Отчет!F117","v":0},null,null,null,null,null,null,"Исполнено плановых назначений через банковские счета"]
["Атрибут","ИспКасУчр",{"$f":"Отчет!G117","v":0},null,null,null,null,null,null,"Исполнено плановых назначений через кассу учреждения"]
["Атрибут","ИспНекасОп",{"$f":"Отчет!H117","v":0},null,null,null,null,null,null,"Исполнено плановых назначений некассовыми операциями"]
["Атрибут","ИспИтого",{"$f":"Отчет!I117","v":0},null,null,null,null,null,null,"Исполнено плановых назначений итого"]
["Атрибут","НеИспПланНазн",{"$f":"Отчет!J117","v":0},null,null,null,null,null,null,"Не исполнено плановых назначений"]
["###"]
["Элемент","ПогашНеРез",null,null,null,null,null,null,null,"Погашение заимствований от нерезидентов"]
["Атрибут","КодАналит",{"$f":"Отчет!C118","v":"820"},null,null,null,null,null,null,"Код аналитики"]
["Атрибут","УтвПланНазн",{"$f":"Отчет!D118","v":0},null,null,null,null,null,null,"Утверждено плановых назначений"]
["Атрибут","ИспЛицСч",{"$f":"Отчет!E118","v":0},null,null,null,null,null,null,"Исполнено плановых назначений через лицевые счета"]
["Атрибут","ИспБанкСч",{"$f":"Отчет!F118","v":0},null,null,null,null,null,null,"Исполнено плановых назначений через банковские счета"]
["Атрибут","ИспКасУчр",{"$f":"Отчет!G118","v":0},null,null,null,null,null,null,"Исполнено плановых назначений через кассу учреждения"]
["Атрибут","ИспНекасОп",{"$f":"Отчет!H118","v":0},null,null,null,null,null,null,"Исполнено плановых назначений некассовыми операциями"]
["Атрибут","ИспИтого",{"$f":"Отчет!I118","v":0},null,null,null,null,null,null,"Исполнено плановых назначений итого"]
["Атрибут","НеИспПланНазн",{"$f":"Отчет!J118","v":0},null,null,null,null,null,null,"Не исполнено плановых назначений"]
["###"]
["###"]
["Элемент","ИзмОстСр",null,null,null,null,null,null,null,"Изменение остатков средств"]
["Элемент","ИзмОстСрВс",null,"*",null,null,null,null,null,"Изменение остатков средств, всего"]
["Атрибут","УтвПланНазн",{"$f":"Отчет!D119","v":69162.11},null,null,null,null,null,null,"Утверждено плановых назначений"]
["Атрибут","ИспЛицСч",{"$f":"Отчет!E119","v":-80382.899999999994},null,null,null,null,null,null,"Исполнено плановых назначений через лицевые счета"]
["Атрибут","ИспБанкСч",{"$f":"Отчет!F119","v":0},null,null,null,null,null,null,"Исполнено плановых назначений через банковские счета"]
["Атрибут","ИспКасУчр",{"$f":"Отчет!G119","v":0},null,null,null,null,null,null,"Исполнено плановых назначений через кассу учреждения"]
["Атрибут","ИспНекасОп",{"$f":"Отчет!H119","v":0},null,null,null,null,null,null,"Исполнено плановых назначений некассовыми операциями"]
["Атрибут","ИспИтого",{"$f":"Отчет!I119","v":-80382.899999999994},null,null,null,null,null,null,"Исполнено плановых назначений итого"]
["Атрибут","НеИспПланНазн",{"$f":"Отчет!J119","v":149545.01},null,null,null,null,null,null,"Не исполнено плановых назначений"]
["###"]
["Элемент","УвОстСрВс",null,null,null,null,null,null,null,"Увеличение остатков средств, всего"]
["Атрибут","КодАналит",{"$f":"Отчет!C120","v":"510"},null,null,null,null,null,null,"Код аналитики"]
["Атрибут","УтвПланНазн",{"$f":"Отчет!D120","v":0},null,null,null,null,null,null,"Утверждено плановых назначений"]
["Атрибут","ИспЛицСч",{"$f":"Отчет!E120","v":-1521892},null,null,null,null,null,null,"Исполнено плановых назначений через лицевые счета"]
["Атрибут","ИспБанкСч",{"$f":"Отчет!F120","v":0},null,null,null,null,null,null,"Исполнено плановых назначений через банковские счета"]
["Атрибут","ИспКасУчр",{"$f":"Отчет!G120","v":0},null,null,null,null,null,null,"Исполнено плановых назначений через кассу учреждения"]
["Атрибут","ИспНекасОп",{"$f":"Отчет!H120","v":0},null,null,null,null,null,null,"Исполнено плановых назначений некассовыми операциями"]
["Атрибут","ИспИтого",{"$f":"Отчет!I120","v":-1521892},null,null,null,null,null,null,"Исполнено плановых назначений итого"]
["###"]
["Элемент","УмОстСрВс",null,null,null,null,null,null,null,"Уменьшение остатков средств, всего"]
["Атрибут","КодАналит",{"$f":"Отчет!C121","v":"610"},null,null,null,null,null,null,"Код аналитики"]
["Атрибут","УтвПланНазн",{"$f":"Отчет!D121","v":0},null,null,null,null,null,null,"Утверждено плановых назначений"]
["Атрибут","ИспЛицСч",{"$f":"Отчет!E121","v":1441509.1},null,null,null,null,null,null,"Исполнено плановых назначений через лицевые счета"]
["Атрибут","ИспБанкСч",{"$f":"Отчет!F121","v":0},null,null,null,null,null,null,"Исполнено плановых назначений через банковские счета"]
["Атрибут","ИспКасУчр",{"$f":"Отчет!G121","v":0},null,null,null,null,null,null,"Исполнено плановых назначений через кассу учреждения"]
["Атрибут","ИспНекасОп",{"$f":"Отчет!H121","v":0},null,null,null,null,null,null,"Исполнено плановых назначений некассовыми операциями"]
["Атрибут","ИспИтого",{"$f":"Отчет!I121","v":1441509.1},null,null,null,null,null,null,"Исполнено плановых назначений итого"]
["###"]
["###"]
["Элемент","ИзмВнутрОб",null,null,null,null,null,null,null,"Изменение остатков по внутренним оборотам средств учреждения"]
["Элемент","ИзмВнутрОбВс",null,"*",null,null,null,null,null,"Изменение остатков по внутренним оборотам средств учреждения, всего"]
["Атрибут","УтвПланНазн",{"$f":"Отчет!D122","v":0},null,null,null,null,null,null,"Утверждено плановых назначений"]
["Атрибут","ИспЛицСч",{"$f":"Отчет!E122","v":0},null,null,null,null,null,null,"Исполнено плановых назначений через лицевые счета"]
["Атрибут","ИспБанкСч",{"$f":"Отчет!F122","v":0},null,null,null,null,null,null,"Исполнено плановых назначений через банковские счета"]
["Атрибут","ИспКасУчр",{"$f":"Отчет!G122","v":0},null,null,null,null,null,null,"Исполнено плановых назначений через кассу учреждения"]
["Атрибут","ИспНекасОп",{"$f":"Отчет!H122","v":0},null,null,null,null,null,null,"Исполнено плановых назначений некассовыми операциями"]
["Атрибут","ИспИтого",{"$f":"Отчет!I122","v":0},null,null,null,null,null,null,"Исполнено плановых назначений итого"]
["Атрибут","НеИспПланНазн",{"$f":"Отчет!J122","v":0},null,null,null,null,null,null,"Не исполнено плановых назначений"]
["###"]
["Элемент","УвОстСрУч",null,null,null,null,null,null,null,"Увеличение остатков средств учреждения"]
["Атрибут","КодАналит",{"$f":"Отчет!C124","v":"510"},null,null,null,null,null,null,"Код аналитики"]
["Атрибут","УтвПланНазн",{"$f":"Отчет!D124","v":0},null,null,null,null,null,null,"Утверждено плановых назначений"]
["Атрибут","ИспЛицСч",{"$f":"Отчет!E124","v":0},null,null,null,null,null,null,"Исполнено плановых назначений через лицевые счета"]
["Атрибут","ИспБанкСч",{"$f":"Отчет!F124","v":0},null,null,null,null,null,null,"Исполнено плановых назначений через банковские счета"]
["Атрибут","ИспКасУчр",{"$f":"Отчет!G124","v":0},null,null,null,null,null,null,"Исполнено плановых назначений через кассу учреждения"]
["Атрибут","ИспНекасОп",{"$f":"Отчет!H124","v":0},null,null,null,null,null,null,"Исполнено плановых назначений некассовыми операциями"]
["Атрибут","ИспИтого",{"$f":"Отчет!I124","v":0},null,null,null,null,null,null,"Исполнено плановых назначений итого"]
["###"]
["Элемент","УмОстСрВс",null,null,null,null,null,null,null,"Уменьшение остатков средств учреждения"]
["Атрибут","КодАналит",{"$f":"Отчет!C125","v":"610"},null,null,null,null,null,null,"Код аналитики"]
["Атрибут","УтвПланНазн",{"$f":"Отчет!D125","v":0},null,null,null,null,null,null,"Утверждено плановых назначений"]
["Атрибут","ИспЛицСч",{"$f":"Отчет!E125","v":0},null,null,null,null,null,null,"Исполнено плановых назначений через лицевые счета"]
["Атрибут","ИспБанкСч",{"$f":"Отчет!F125","v":0},null,null,null,null,null,null,"Исполнено плановых назначений через банковские счета"]
["Атрибут","ИспКасУчр",{"$f":"Отчет!G125","v":0},null,null,null,null,null,null,"Исполнено плановых назначений через кассу учреждения"]
["Атрибут","ИспНекасОп",{"$f":"Отчет!H125","v":0},null,null,null,null,null,null,"Исполнено плановых назначений некассовыми операциями"]
["Атрибут","ИспИтого",{"$f":"Отчет!I125","v":0},null,null,null,null,null,null,"Исполнено плановых назначений итого"]
["###"]
["###"]
["Элемент","ИзмВнутрРасч",null,null,null,null,null,null,null,"Изменение остатков по внутренним расчетам"]
["Элемент","ИзмВнутрРасчВс",null,"*",null,null,null,null,null,"Изменение остатков по внутренним расчетам, всего"]
["Атрибут","УтвПланНазн",{"$f":"Отчет!D131","v":0},null,null,null,null,null,null,"Утверждено плановых назначений"]
["Атрибут","ИспЛицСч",{"$f":"Отчет!E131","v":0},null,null,null,null,null,null,"Исполнено плановых назначений через лицевые счета"]
["Атрибут","ИспБанкСч",{"$f":"Отчет!F131","v":0},null,null,null,null,null,null,"Исполнено плановых назначений через банковские счета"]
["Атрибут","ИспКасУчр",{"$f":"Отчет!G131","v":0},null,null,null,null,null,null,"Исполнено плановых назначений через кассу учреждения"]
["Атрибут","ИспНекасОп",{"$f":"Отчет!H131","v":0},null,null,null,null,null,null,"Исполнено плановых назначений некассовыми операциями"]
["Атрибут","ИспИтого",{"$f":"Отчет!I131","v":0},null,null,null,null,null,null,"Исполнено плановых назначений итого"]
["Атрибут","НеИспПланНазн",{"$f":"Отчет!J131","v":0},null,null,null,null,null,null,"Не исполнено плановых назначений"]
["###"]
["Элемент","УвОстВнуРасч",null,null,null,null,null,null,null,"Увеличение остатков по внутренним расчетам (Кт 030404510)"]
["Атрибут","КодАналит",{"$f":"Отчет!C133","v":0},null,null,null,null,null,null,"Код аналитики"]
["Атрибут","УтвПланНазн",{"$f":"Отчет!D133","v":0},null,null,null,null,null,null,"Утверждено плановых назначений"]
["Атрибут","ИспЛицСч",{"$f":"Отчет!E133","v":0},null,null,null,null,null,null,"Исполнено плановых назначений через лицевые счета"]
["Атрибут","ИспБанкСч",{"$f":"Отчет!F133","v":0},null,null,null,null,null,null,"Исполнено плановых назначений через банковские счета"]
["Атрибут","ИспКасУчр",{"$f":"Отчет!G133","v":0},null,null,null,null,null,null,"Исполнено плановых назначений через кассу учреждения"]
["Атрибут","ИспНекасОп",{"$f":"Отчет!H133","v":0},null,null,null,null,null,null,"Исполнено плановых назначений некассовыми операциями"]
["Атрибут","ИспИтого",{"$f":"Отчет!I133","v":0},null,null,null,null,null,null,"Исполнено плановых назначений итого"]
["Атрибут","НеИспПланНазн",{"$f":"Отчет!J133","v":0},null,null,null,null,null,null,"Не исполнено плановых назначений"]
["###"]
["Элемент","УмОстВнуРасч",null,null,null,null,null,null,null,"Уменьшение остатков по внутренним расчетам (Дт 030404610)"]
["Атрибут","КодАналит",{"$f":"Отчет!C134","v":0},null,null,null,null,null,null,"Код аналитики"]
["Атрибут","УтвПланНазн",{"$f":"Отчет!D134","v":0},null,null,null,null,null,null,"Утверждено плановых назначений"]
["Атрибут","ИспЛицСч",{"$f":"Отчет!E134","v":0},null,null,null,null,null,null,"Исполнено плановых назначений через лицевые счета"]
["Атрибут","ИспБанкСч",{"$f":"Отчет!F134","v":0},null,null,null,null,null,null,"Исполнено плановых назначений через банковские счета"]
["Атрибут","ИспКасУчр",{"$f":"Отчет!G134","v":0},null,null,null,null,null,null,"Исполнено плановых назначений через кассу учреждения"]
["Атрибут","ИспНекасОп",{"$f":"Отчет!H134","v":0},null,null,null,null,null,null,"Исполнено плановых назначений некассовыми операциями"]
["Атрибут","ИспИтого",{"$f":"Отчет!I134","v":0},null,null,null,null,null,null,"Исполнено плановых назначений итого"]
["Атрибут","НеИспПланНазн",{"$f":"Отчет!J134","v":0},null,null,null,null,null,null,"Не исполнено плановых назначений"]
["###"]
["###"]
["Элемент","ИзмВнутрПрив",null,null,null,null,null,null,null,"Изменение остатков расчетов по внутренним привлечениям средств"]
["Элемент","ИзмВнутрПривВс",null,"*",null,null,null,null,null,"Изменение остатков расчетов по внутренним привлечениям средств, всего"]
["Атрибут","УтвПланНазн",{"$f":"Отчет!D135","v":0},null,null,null,null,null,null,"Утверждено плановых назначений"]
["Атрибут","ИспЛицСч",{"$f":"Отчет!E135","v":0},null,null,null,null,null,null,"Исполнено плановых назначений через лицевые счета"]
["Атрибут","ИспБанкСч",{"$f":"Отчет!F135","v":0},null,null,null,null,null,null,"Исполнено плановых назначений через банковские счета"]
["Атрибут","ИспКасУчр",{"$f":"Отчет!G135","v":0},null,null,null,null,null,null,"Исполнено плановых назначений через кассу учреждения"]
["Атрибут","ИспНекасОп",{"$f":"Отчет!H135","v":0},null,null,null,null,null,null,"Исполнено плановых назначений некассовыми операциями"]
["Атрибут","ИспИтого",{"$f":"Отчет!I135","v":0},null,null,null,null,null,null,"Исполнено плановых назначений итого"]
["Атрибут","НеИспПланНазн",{"$f":"Отчет!J135","v":0},null,null,null,null,null,null,"Не исполнено плановых назначений"]
["###"]
["Элемент","УвОстВнуРасч",null,null,null,null,null,null,null,"Увеличение расчетов по внутреннему привлечению остатков средств (Кт 030406000)"]
["Атрибут","КодАналит",{"$f":"Отчет!C137","v":0},null,null,null,null,null,null,"Код аналитики"]
["Атрибут","УтвПланНазн",{"$f":"Отчет!D137","v":0},null,null,null,null,null,null,"Утверждено плановых назначений"]
["Атрибут","ИспЛицСч",{"$f":"Отчет!E137","v":0},null,null,null,null,null,null,"Исполнено плановых назначений через лицевые счета"]
["Атрибут","ИспБанкСч",{"$f":"Отчет!F137","v":0},null,null,null,null,null,null,"Исполнено плановых назначений через банковские счета"]
["Атрибут","ИспКасУчр",{"$f":"Отчет!G137","v":0},null,null,null,null,null,null,"Исполнено плановых назначений через кассу учреждения"]
["Атрибут","ИспНекасОп",{"$f":"Отчет!H137","v":0},null,null,null,null,null,null,"Исполнено плановых назначений некассовыми операциями"]
["Атрибут","ИспИтого",{"$f":"Отчет!I137","v":0},null,null,null,null,null,null,"Исполнено плановых назначений итого"]
["Атрибут","НеИспПланНазн",{"$f":"Отчет!J137","v":0},null,null,null,null,null,null,"Не исполнено плановых назначений"]
["###"]
["Элемент","УмОстВнуРасч",null,null,null,null,null,null,null,"Уменьшение расчетов по внутреннему привлечению остатков средств (Дт 030406000)"]
["Атрибут","КодАналит",{"$f":"Отчет!C138","v":0},null,null,null,null,null,null,"Код аналитики"]
["Атрибут","УтвПланНазн",{"$f":"Отчет!D138","v":0},null,null,null,null,null,null,"Утверждено плановых назначений"]
["Атрибут","ИспЛицСч",{"$f":"Отчет!E138","v":0},null,null,null,null,null,null,"Исполнено плановых назначений через лицевые счета"]
["Атрибут","ИспБанкСч",{"$f":"Отчет!F138","v":0},null,null,null,null,null,null,"Исполнено плановых назначений через банковские счета"]
["Атрибут","ИспКасУчр",{"$f":"Отчет!G138","v":0},null,null,null,null,null,null,"Исполнено плановых назначений через кассу учреждения"]
["Атрибут","ИспНекасОп",{"$f":"Отчет!H138","v":0},null,null,null,null,null,null,"Исполнено плановых назначений некассовыми операциями"]
["Атрибут","ИспИтого",{"$f":"Отчет!I138","v":0},null,null,null,null,null,null,"Исполнено плановых назначений итого"]
["Атрибут","НеИспПланНазн",{"$f":"Отчет!J138","v":0},null,null,null,null,null,null,"Не исполнено плановых назначений"]
["Конец сценария"]